{"text_format":"1","workbook":"xlsx","n_sheets":21,"sheets":["Config","MasterWorkplan","Home Page","Program Context & Partners","Chlamydia","Gonorrhea","Syphilis","Congenital Syphilis","Adverse Outcomes","Outbreak","Partner Services for Women","EPT","Partner Services for MSM","STD Specialty Care","Gonorrhea & Syphilis Tx","Priority Pop. Screening & Tx","Community Health Promotion","Provider Education & Reporting","Policy","Analysis, Translation, Dissemin","Data-Driven Planning"],"not_rendered":{"charts":0,"images":0,"macros":1,"external_links":0,"defined_names":172,"comments":20,"pivot_tables":0},"unopened":[],"bounds":{"document_bytes":16777216,"sheet_cells":100000,"rows_first":2000,"rows_last":500,"rows_between":2000,"halvings":0,"cell_chars":16384,"cell_head_chars":4096},"cells_cut":0,"cells_raw":0,"read":"whole","date_system":"1900"}

{"sheet":"Config","index":0,"n_rows":69,"n_cols":21,"rows_kept":69,"cut":false,"hidden":true,"merged":[]}
["Template Configuration Sheet"]
["This configuration sheet is used to store settings for the rest of the workbook and maximize flexibility."]
["The following formatting is used on this worksheet:"]
["[Name of Range]","Input Cell(s)"]
["[Name of Range]","value from other named location"]
[]
["Configuration Values",null,null,"Lookup Values"]
[null,null,null,null,null,null,null,"Partner selection lookups",null,null,null,null,null,"Use this section to configure text displayed on the workbook tabs-->>"]
["PerformanceYear",1,null,"lkpOrgNames",null,"lkpYN",null,"lkpPartnerTypes_Surveillance","lkpPartnerTypes_DiseaseInvest","lkpPartnerTypes_Screening","lkpPartnerTypes_PreventionAndPolicy","lkpPartnerTypes_DataUse",null,"lkpStrategy_ID","lkpStrategy_Text","lkpStrategyAreas_Text","lkpStrategyAreas_ID","lkpStrategy_Shorthand",null,"lkpSubStrategy_ID","lkpSubStrategy_Text"]
["TemplateType","Workplan",null,"[Choose your Project Area…]",null,"Y",null,"Labs","Behavioral Health/Social Services","Community-Based Organizations","Community-Based Organizations","Community-Based Organizations",null,1,"Conduct Chlamydia (CT) surveillance","Conduct Surveillance ",1,"Chlamydia",null,"1A","Collect, manage, analyze, interpret and disseminate data on identified cases of chlamydia, ensuring timely capture of core epidemiologic variables available on laboratory reports: age, sex, county, diagnosing facility type, specimen collection date, and anatomic site(s) of infection"]
["TemplateVersion",1,null,"Alabama",null,"N",null,"Local Health Dept","Community-Based Organizations","Correctional Facility","Educational Institutions","Local Health Dept",null,2,"Conduct Gonorrhea (GC) surveillance","Conduct Surveillance ",1,"Gonorrhea",null,"2A","Collect, manage, analyze, interpret and disseminate data on identified cases of gonorrhea, ensuring timely capture of core epidemiologic variables available on laboratory reports: age, sex, county, diagnosing facility type, specimen collection date, and anatomic site(s) of infection"]
[null,null,null,"Alaska",null,null,null,"Private Health Care Providers","Correctional Facility","Insurance Companies","Labs","Media",null,3,"Conduct syphilis surveillance","Conduct Surveillance ",1,"Syphilis",null,"2B","To better understand GC epidemiology, conduct provider follow-up and, if needed, brief patient interviews of a random sample of GC cases from a well-defined high morbidity area or the project area as a whole. Ensure timely and quality capture of core epidemiologic variables including, but not limited to: age, sex, county, diagnosing facility type, specimen collection date, anatomic site(s) of infection, race/ethnicity, gender identity/sexual orientation, sex of sex partner(s), clinical signs/symptoms, pregnancy status, HIV status, partner treatment (i.e., EPT provision), gonorrhea-related sequelae (i.e., presence of pelvic inflammatory disease (PID), disseminated gonococcal infection (DGI), etc.), substance use, date of diagnosis, treatment received (including names and doses of treatment), date of treatment, co-infection with other STDs, and history of GC infection"]
["Title1","Strengthening STD Prevention and Control for Health Departments (STD PCHD)",null,"Arizona",null,null,null,"Public Health Care Providers","HIV/AIDS Service Orgs.","Labs","Legislative Entities","State Agency Partners",null,4,"Conduct congenital syphilis (CS) surveillance","Conduct Surveillance ",1,"Congenital Syphilis",null,"3A","Collect, manage, analyze, interpret and disseminate data on identified cases of syphilis, ensuring timely capture of core epidemiologic variables available on laboratory reports: age, sex, county, diagnosing facility type, and specimen collection date"]
["Title2","Work Plan",null,"Arkansas",null,null,null,"State Agency Partners","Labs","Local Health Dept","Local Health Dept","Other",null,5,"Conduct surveillance of adverse outcomes of STDs","Conduct Surveillance ",1,"Adverse Outcomes",null,"3B","To better understand primary and secondary (P&S) syphilis epidemiology, conduct provider follow-up and, if needed, brief patient interviews of all cases of P&S syphilis. Ensure timely and quality capture of core epidemiologic variables including, but not limited to: age, sex, county, diagnosing facility type, specimen collection date, race/ethnicity, gender identity/sexual orientation, sex of sex partner(s), pregnancy status, clinical signs/symptoms, HIV status, substance use, treatment received, date of treatment, and history of syphilis"]
["Title3","PCHD 2019 Year 1 ",null,"Baltimore",null,null,null,"Other","Local Health Dept","Maternal/Child Health ","Media",null,null,6,"Respond to STD-related outbreaks","Conduct Disease Investigation and Intervention",2,"Outbreak",null,"4A","To better understand CS epidemiology, conduct provider and mother follow-up and review medical records of all reported CS cases. Based on information collected, manage, analyze, and disseminate data on reported cases of CS, ensuring timely and quality capture of epidemiologic core maternal, fetal, and neonatal variables including, but not limited to: mother's age, race/ethnicity, county, stage of syphilis diagnosed during pregnancy, date(s) of 1st prenatal visit, syphilis testing (and corresponding titers), treatment(s) and delivery; HIV status of mother, substance use, clinical settings of diagnosis and care; and fetal and neonatal information such as ultrasound findings, physical and laboratory findings, and HIV status of infant at birth"]
["AwardeeName",{"$f":"'Home Page'!C9","v":"[Choose your Project Area…]"},null,"California",null,null,null,null,"Maternal/Child Health ","Private Health Care Providers","Private Health Care Providers",null,null,7,"Conduct health department disease investigation for pregnant women and other reproductive-age women with syphilis","Conduct Disease Investigation and Intervention",2,"Partner Services for Women",null,"4B","For applicants with 10 or more cases of congenital syphilis in the previous calendar year: Improve methods to match vital statistics birth and mortality data with syphilis surveillance data to review syphilis testing practices among women who delivered a stillborn baby, identify missed cases of syphilis-related stillbirth, and strengthen CS case report data"]
["PeriodOfPerformance","1/1/2019 - 12/31/2019",null,"Chicago",null,null,null,null,"Private Health Care Providers","Professional Associations","Professional Associations",null,null,8,"Promote Expedited Partner Therapy (EPT) (where permissible) to partners of chlamydia and/or gonorrhea cases","Conduct Disease Investigation and Intervention",2,"EPT",null,"4C","For applicants with 10 or more cases of congenital syphilis in the previous calendar year: Strengthen CS morbidity and mortality case review boards at the local and/or state level to help identify causes of CS and develop interventions to address causes"]
["configObjectiveRowCount",10,null,"Colorado",null,null,null,null,"Public Health Care Providers","Public Health Care Providers","Public Health Care Providers",null,null,9,"Conduct health department syphilis disease investigation and intervention for men with syphilis","Conduct Disease Investigation and Intervention",2,"Partner Services for MSM",null,"5A","Conduct active surveillance of adverse outcomes of adult syphilis including neurosyphilis and otic and ocular syphilis through sentinel approaches, collecting variables including, but not limited to: neurological manifestations, ocular manifestations, otic manifestations, and late clinical manifestations. These are in addition to the stage of syphilis and the core epidemiologic variables listed for P&S syphilis above"]
[null,null,null,"Connecticut",null,null,null,null,"State Agency Partners","School-based Clinics","State Agency Partners",null,null,10,"Promote quality STD specialty care services","Promote CDC-Recommended Screening, Diagnosis, and Treatment",3,"STD Specialty Care",null,"6A","Review STD surveillance data by the core epidemiologic variables at regular intervals to identify outbreaks and other significant changes in STD epidemiology"]
[null,null,null,"Delaware",null,null,null,null,"Substance Abuse Tx Centers","State Agency Partners","Other",null,null,11,"Promote CDC-recommended treatment for gonorrhea and syphilis","Promote CDC-Recommended Screening, Diagnosis, and Treatment",3,"Gonorrhea & Syphilis Tx",null,"6B","Develop and maintain an outbreak capacity plan to respond to significant changes in STD epidemiology. Ensure that staff are trained and ready to implement the outbreak capacity plan"]
[null,null,null,"District of Columbia",null,null,null,null,"Training/Capacity Building Center","Substance Abuse Tx Centers",null,null,null,12,"Promote CDC-recommended screening for, and treatment of, STDs among priority populations","Promote CDC-Recommended Screening, Diagnosis, and Treatment",3,"Priority Pop. Screening & Tx",null,"7A","Prioritize for investigation all reported cases among females of reproductive age and reactive serology, including provider follow-up to confirm stage, treatment and pregnancy status"]
[null,null,null,"Florida",null,null,null,null,"Other","Training/Capacity Building Center",null,null,null,13,"Promote STD prevention to the public","Promote STD Prevention and Policy",4,"Community Health Promotion",null,"7B","Regardless of pregnancy status, conduct follow-up on new syphilis cases among women of reproductive age, to obtain more information, if needed, on treatment and other information needed to ensure linkage to related STD, MCH, and HIV prevention and other services. For those who are pregnant, investigation should also include follow-up with the pregnant female, prenatal care providers, birthing centers, and neonatal care providers as needed to ensure adequate maternal follow up and stillbirth and neonatal evaluations per clinical guidelines"]
[null,null,null,"Georgia",null,null,null,null,null,"Youth Programs/Centers",null,null,null,14,"Promote STD prevention and reporting to provider community","Promote STD Prevention and Policy",4,"Provider Education & Reporting",null,"7C","Provide timely partner services to all pregnant women who are diagnosed with syphilis and all other women of reproductive age who are diagnosed with early syphilis"]
[null,null,null,"Hawaii",null,null,null,null,null,"Other",null,null,null,15,"Monitor STD-related policies and policy development","Promote STD Prevention and Policy",4,"Policy",null,"8A","Assess EPT practices to identify and prioritize providers, organizations, and areas to target for promotion and improvement. Provide technical assistance and education to promote EPT to providers and organizations who frequently report cases of chlamydia and/or gonorrhea, including cases of repeat infections"]
[null,null,null,"Idaho",null,null,null,null,null,null,null,null,null,16,"Conduct epidemiologic analysis, translation and dissemination","Analyze and Use Data for Program Improvement",5,"Analysis, Translation, Dissemination",null,"9A","Conduct follow-up on primary and secondary syphilis cases among men, to obtain more information, if needed, on treatment, sex of sex partners, HIV serostatus, HIV care status, PrEP use, and other information to ensure linkage to appropriate STD and HIV related prevention services"]
[null,null,null,"Illinois",null,null,null,null,null,null,null,null,null,17,"Conduct data-driven planning, analysis, monitoring and evaluation for program improvement","Analyze and Use Data for Program Improvement",5,"Data-Driven Planning",null,"9B","Provide timely and comprehensive partner services to men with primary and secondary syphilis who report pregnant or other female partners of reproductive age"]
[null,null,null,"Indiana",null,null,null,null,null,null,null,null,null,null,null,null,null,null,null,"9C","Use program and epidemiologic data to identify subgroups of MSM with primary and secondary syphilis and factors associated with transmission to target for partner services to yield high numbers of all partners treated in a timely fashion and for whom consequence of transmission is the greatest. As resources permit, provide timely partner services including comprehensive STD and HIV testing and linkage to care and needed prevention services to those subgroups of MSM with primary and secondary syphilis"]
[null,null,null,"Iowa",null,null,null,null,null,null,null,null,null,null,null,null,null,null,null,"10A","Identify all STD specialty clinics in the project area"]
[null,null,null,"Kansas",null,null,null,null,null,null,null,null,null,null,null,null,null,null,null,"10B","Promote quality STD care in those settings based on clinical guidelines and recommendations and promote strategies for expanding access to care in those settings"]
[null,null,null,"Kentucky",null,null,null,null,null,null,null,null,null,null,null,null,null,null,null,"11A","Assess GC treatment practices to identify and prioritize providers, organizations, and areas to target for promotion and improvement. Provide education and technical assistance to providers and organizations who prescribe non-recommended treatment for gonorrhea"]
[null,null,null,"Los Angeles",null,null,null,null,null,null,null,null,null,null,null,null,null,null,null,"11B","Assess syphilis treatment practices to identify and prioritize providers, organizations, and areas to target for promotion and improvement. Provide education and technical assistance to providers and organizations who prescribe non-recommended treatment for syphilis"]
[null,null,null,"Louisiana",null,null,null,null,null,null,null,null,null,null,null,null,null,null,null,"11C","Implement a Benzathine penicillin G forecasting inventory management system to monitor supply, and have a plan to address shortages in the applicant's project area. Assist providers and organizations who are unable to provide timely, recommended treatment for syphilis in getting access to medication or dispensing the treatment to the patient, as needed"]
[null,null,null,"Maine",null,null,null,null,null,null,null,null,null,null,null,null,null,null,null,"12A","For pregnant women: Assess screening and treatment practices to identify and prioritize providers, organizations, and areas to target for promotion and improvement. Provide education and technical assistance, for prenatal-care providers and organizations who do not regularly screen for syphilis as recommended"]
[null,null,null,"Maryland",null,null,null,null,null,null,null,null,null,null,null,null,null,null,null,"12B","For young adults and adolescents, particularly those seen in family planning clinics, adolescent health clinics, and primary care settings: Assess screening and treatment practices to identify and prioritize providers, organizations, and areas to target for promotion and improvement. Provide education and technical assistance to targeted providers and organizations to promote recommended screening and treatment"]
[null,null,null,"Massachusetts",null,null,null,null,null,null,null,null,null,null,null,null,null,null,null,"12C","For MSM, particularly those seen in lesbian, gay, bisexual, transgender and queer/questionning (LGBTQ) health centers, HRSA-funded HIV care settings, primary care settings, and clinics providing HIV PrEP: Assess screening and treatment practices to identify and prioritize providers, organizations, and areas to target for promotion and improvement. Provide education and technical assistance to targeted providers and organizations, to promote recommended screening and treatment"]
[null,null,null,"Michigan",null,null,null,null,null,null,null,null,null,null,null,null,null,null,null,"13A","Provide audience-appropriate, 508-compliant, STD-prevention information online, including answers to common STD questions (e.g., symptoms, testing methods, treatment) and places where testing and treatment are available"]
[null,null,null,"Minnesota",null,null,null,null,null,null,null,null,null,null,null,null,null,null,null,"14A","Notify local providers and organizations about important or timely STD-related issues, such as outbreaks, emerging diseases, recommended treatment changes, biomedical advances, and reporting requirements"]
[null,null,null,"Mississippi",null,null,null,null,null,null,null,null,null,null,null,null,null,null,null,"15A","Work with the CDC, the NNECS recipient, and other partners to identify STD-related policies of interest. Monitor proposed and actual changes in policies that may affect STD prevention programs"]
[null,null,null,"Missouri",null,null,null,null,null,null,null,null,null,null,null,null,null,null,null,"15B","Work with local policy liaisons and with partner organizations on the development of policies that enhance the work of the STD prevention program"]
[null,null,null,"Montana",null,null,null,null,null,null,null,null,null,null,null,null,null,null,null,"16A","Conduct regular analyses of trends in, geographic distribution of, and factors associated with reported cases using core epidemiologic variables"]
[null,null,null,"Nebraska",null,null,null,null,null,null,null,null,null,null,null,null,null,null,null,"16B","Disseminate, interpret, and discuss data and findings with internal and external stakeholders"]
[null,null,null,"Nevada",null,null,null,null,null,null,null,null,null,null,null,null,null,null,null,"16C","Assist local jurisdictions with analyzing their data on a regular basis, including analyses of trends, epidemiologic factors, and geographic distribution of cases, and help local areas identify outbreaks, gaps in services, or disparities in the burden of disease that should drive resource allocation"]
[null,null,null,"New Hampshire",null,null,null,null,null,null,null,null,null,null,null,null,null,null,null,"17A","Routinely analyze, synthesize and interpret surveillance, epidemiologic, program, and other data to strengthen the program's understanding of local STD epidemiology and program context. Evaluate progress, using scientific methods, program data, performance data, and cost data, and adjust program plans accordingly"]
[null,null,null,"New Jersey",null,null,null,null,null,null,null,null,null,null,null,null,null,null,null,"17B","Use findings from those analyses to identify the program's STD prevention and control priorities, populations, and geographic areas, to develop program plans, and to allocate staffing and other resources accordingly"]
[null,null,null,"New Mexico"]
[null,null,null,"New York"]
[null,null,null,"New York City"]
[null,null,null,"North Carolina"]
[null,null,null,"North Dakota"]
[null,null,null,"Ohio"]
[null,null,null,"Oklahoma"]
[null,null,null,"Oregon"]
[null,null,null,"Pennsylvania"]
[null,null,null,"Philadelphia"]
[null,null,null,"Puerto Rico"]
[null,null,null,"Rhode Island"]
[null,null,null,"San Francisco"]
[null,null,null,"South Carolina"]
[null,null,null,"South Dakota"]
[null,null,null,"Tennessee"]
[null,null,null,"Texas"]
[null,null,null,"US Virgin Islands"]
[null,null,null,"Utah"]
[null,null,null,"Vermont"]
[null,null,null,"Virginia"]
[null,null,null,"Washington"]
[null,null,null,"West Virginia"]
[null,null,null,"Wisconsin"]
[null,null,null,"Wyoming"]

{"sheet":"MasterWorkplan","index":1,"n_rows":114,"n_cols":12,"rows_kept":114,"cut":false,"hidden":true,"merged":[[43,1,43,4],[3,1,3,4],[5,1,5,4],[7,3,7,4],[20,3,20,4],[33,3,33,4],[109,3,109,4],[45,3,45,4],[58,3,58,4],[71,3,71,4],[81,1,81,4],[83,3,83,4],[96,3,96,4]]}
[null,null,null,null,null,null,"Line Spacing",null,"config label","config val","Identifier(s)>>"]
[null,{"$f":"\"PCHD Year \" & PerformanceYear & \": Workplan\"","v":"PCHD Year 1: Workplan"},null,null,null,null,"20pt",null,"StrategyArea",{"$f":"INDEX(lkpStrategyAreas_ID,MATCH($J$3,lkpStrategy_ID,0))","v":2}]
[null,{"$f":"INDEX(lkpStrategyAreas_Text,MATCH($J$3,lkpStrategy_ID,0))","v":"Conduct Disease Investigation and Intervention"},null,null,null,null,null,null,"Strategy ID",9]
[null,{"$f":"\"Strategy \" & $J$3 & \": \" & INDEX(lkpStrategy_Text,MATCH($J$3,lkpStrategy_ID,0))","v":"Strategy 9: Conduct health department syphilis disease investigation and intervention for men with syphilis"}]
[null,null,null,null,null,null,null,null,null,null,"SubStrategyID","ObjectiveID"]
[null,{"$f":"$J$3 & J6 & \": \" & INDEX(lkpSubStrategy_Text,MATCH($J$3&J6,lkpSubStrategy_ID,0))","v":"9A: Conduct follow-up on primary and secondary syphilis cases among men, to obtain more information, if needed, on treatment, sex of sex partners, HIV serostatus, HIV care status, PrEP use, and other information to ensure linkage to appropriate STD and HIV related prevention services"},null,null,null,null,"line\nline\nline",null,"SubStrategy letter","A",{"$f":"$J$3&J6","v":"9A"}]
[null,{"$f":"\"Objective \" & L8","v":"Objective 9A-1"}]
[null,"Annual Objective: Describe one objective for this strategy, using the S.M.A.R.T. objectives format",null,"Description: Briefly describe the baseline and target measures of your objective",null,null,null,null,"Objective",1,null,{"$f":"K6&\"-\"&J8","v":"9A-1"}]
[null,null,null,"Baseline","Target"]
[]
[]
[null,"Activity Description","Activity Timeframe","Output Indicator","Assigned To"]
[]
[]
[]
[]
[]
[null,"[+] Create objective"]
[null,"Applicants can submit up to three objectives for each sub-strategy; click again to hide if not needed"]
[null,{"$f":"\"Objective \" & L21","v":"Objective 9A-2"}]
[null,"Annual Objective: Describe one objective for this strategy, using the S.M.A.R.T. objectives format",null,"Description: Briefly describe the baseline and target measures of your objective",null,null,null,null,"Objective",2,null,{"$f":"K6&\"-\"&J21","v":"9A-2"}]
[null,null,null,"Baseline","Target"]
[]
[]
[null,"Activity Description","Activity Timeframe","Output Indicator","Assigned To"]
[]
[]
[]
[]
[]
[null,"[+] Create objective"]
[null,"Applicants can submit up to three objectives for each sub-strategy; click again to hide if not needed"]
[null,{"$f":"\"Objective \" & L34","v":"Objective 9A-3"}]
[null,"Annual Objective: Describe one objective for this strategy, using the S.M.A.R.T. objectives format",null,"Description: Briefly describe the baseline and target measures of your objective",null,null,null,null,"Objective",3,null,{"$f":"K6&\"-\"&J34","v":"9A-3"}]
[null,null,null,"Baseline","Target"]
[]
[]
[null,"Activity Description","Activity Timeframe","Output Indicator","Assigned To"]
[]
[]
[]
[]
[]
[null,{"$f":"$J$3 & J44 & \": \" & INDEX(lkpSubStrategy_Text,MATCH($J$3&J44,lkpSubStrategy_ID,0))","v":"9B: Provide timely and comprehensive partner services to men with primary and secondary syphilis who report pregnant or other female partners of reproductive age"},null,null,null,null,"line\nline\nline",null,"SubStrategy letter","B",{"$f":"$J$3&J44","v":"9B"}]
[null,{"$f":"\"Objective \" & L46","v":"Objective 9B-1"}]
[null,"Annual Objective: Describe one objective for this strategy, using the S.M.A.R.T. objectives format",null,"Description: Briefly describe the baseline and target measures of your objective",null,null,null,null,"Objective",1,null,{"$f":"K44&\"-\"&J46","v":"9B-1"}]
[null,null,null,"Baseline","Target"]
[]
[]
[null,"Activity Description","Activity Timeframe","Output Indicator","Assigned To"]
[]
[]
[]
[]
[]
[null,"[+] Create objective"]
[null,"Applicants can submit up to three objectives for each sub-strategy; click again to hide if not needed"]
[null,{"$f":"\"Objective \" & L59","v":"Objective 9B-2"}]
[null,"Annual Objective: Describe one objective for this strategy, using the S.M.A.R.T. objectives format",null,"Description: Briefly describe the baseline and target measures of your objective",null,null,null,null,"Objective",2,null,{"$f":"K44&\"-\"&J59","v":"9B-2"}]
[null,null,null,"Baseline","Target"]
[]
[]
[null,"Activity Description","Activity Timeframe","Output Indicator","Assigned To"]
[]
[]
[]
[]
[]
[null,"[+] Create objective"]
[null,"Applicants can submit up to three objectives for each sub-strategy; click again to hide if not needed"]
[null,{"$f":"\"Objective \" & L72","v":"Objective 9B-3"}]
[null,"Annual Objective: Describe one objective for this strategy, using the S.M.A.R.T. objectives format",null,"Description: Briefly describe the baseline and target measures of your objective",null,null,null,null,"Objective",3,null,{"$f":"K44&\"-\"&J72","v":"9B-3"}]
[null,null,null,"Baseline","Target"]
[]
[]
[null,"Activity Description","Activity Timeframe","Output Indicator","Assigned To"]
[]
[]
[]
[]
[]
[null,{"$f":"$J$3 & J82 & \": \" & INDEX(lkpSubStrategy_Text,MATCH($J$3&J82,lkpSubStrategy_ID,0))","v":"9C: Use program and epidemiologic data to identify subgroups of MSM with primary and secondary syphilis and factors associated with transmission to target for partner services to yield high numbers of all partners treated in a timely fashion and for whom consequence of transmission is the greatest. As resources permit, provide timely partner services including comprehensive STD and HIV testing and linkage to care and needed prevention services to those subgroups of MSM with primary and secondary syphilis"},null,null,null,null,"line\nline\nline",null,"SubStrategy letter","C",{"$f":"$J$3&J82","v":"9C"}]
[null,{"$f":"\"Objective \" & L84","v":"Objective 9C-1"}]
[null,"Annual Objective: Describe one objective for this strategy, using the S.M.A.R.T. objectives format",null,"Description: Briefly describe the baseline and target measures of your objective",null,null,null,null,"Objective",1,null,{"$f":"K82&\"-\"&J84","v":"9C-1"}]
[null,null,null,"Baseline","Target"]
[]
[]
[null,"Activity Description","Activity Timeframe","Output Indicator","Assigned To"]
[]
[]
[]
[]
[]
[null,"[+] Create objective"]
[null,"Applicants can submit up to three objectives for each sub-strategy; click again to hide if not needed"]
[null,{"$f":"\"Objective \" & L97","v":"Objective 9C-2"}]
[null,"Annual Objective: Describe one objective for this strategy, using the S.M.A.R.T. objectives format",null,"Description: Briefly describe the baseline and target measures of your objective",null,null,null,null,"Objective",2,null,{"$f":"K82&\"-\"&J97","v":"9C-2"}]
[null,null,null,"Baseline","Target"]
[]
[]
[null,"Activity Description","Activity Timeframe","Output Indicator","Assigned To"]
[]
[]
[]
[]
[]
[null,"[+] Create objective"]
[null,"Applicants can submit up to three objectives for each sub-strategy; click again to hide if not needed"]
[null,{"$f":"\"Objective \" & L110","v":"Objective 9C-3"}]
[null,"Annual Objective: Describe one objective for this strategy, using the S.M.A.R.T. objectives format",null,"Description: Briefly describe the baseline and target measures of your objective",null,null,null,null,"Objective",3,null,{"$f":"K82&\"-\"&J110","v":"9C-3"}]
[null,null,null,"Baseline","Target"]
[]
[]
[null,"Activity Description","Activity Timeframe","Output Indicator","Assigned To"]

{"sheet":"Home Page","index":2,"n_rows":49,"n_cols":4,"rows_kept":49,"cut":false,"hidden":false,"merged":[[27,1,27,4],[28,1,28,4],[38,1,38,4],[41,1,41,4],[1,3,1,4],[48,1,48,4],[26,1,26,4],[8,2,8,3],[18,1,18,4],[19,1,19,4],[20,1,20,4],[25,1,25,4],[22,1,22,4],[34,1,34,4],[30,1,30,4],[31,1,31,4],[32,1,32,4]]}
[]
[null,null,null,"Form Approved \nOMB No. 0920-0879 \nExpiration Date 01/31/2021"]
[]
[null,{"$f":"Title1","v":"Strengthening STD Prevention and Control for Health Departments (STD PCHD)"}]
[]
[null,{"$f":"Title2","v":"Work Plan"}]
[null,{"$f":"Title3","v":"PCHD 2019 Year 1 "}]
[]
[null,"Project Area:","[Choose your Project Area…]"]
[]
[null,"Period of Performance:",{"$f":"PeriodOfPerformance","v":"1/1/2019 - 12/31/2019"}]
[]
[null,"Submission Date:"]
[]
[null,"Click the navigation bar or a tab at the bottom of the workbook to jump to the corresponding worksheet."]
[null,"The following navigation bar is available on the top of all worksheets:"]
["\n\n\n\n\n\n\n"]
[null,"Instructions:"]
["\n\n","You may use this template to prepare a 2019 PCHD Year 1 Work Plan for DSTDP. Please refer to the supplemental guidance document for more information."]
["\n\n\n","Complete each tab in this workbook. On the Program Context & Partners tab, you will be asked a series of questions that will allow you to reflect on some of the cross-cutting issues and partners related to your work plan activities during PCHD Year 1.  On the Strategy work plan tabs, you will be asked to identify annual objectives, baseline measures and target goals, and activities that will support the achievement of the annual objective."]
["\n","Applicants will complete and submit the PCHD work plan each year during the five year period of performance of the award."]
[]
[null,"If you need technical support at any time, please send an email with a detailed description of your need to the following address:\n"]
["\n","STD_PCHD@cdc.gov"]
[null,"Notes on Data Entry: "]
["\n\n","All light yellow cells are available for user input. You can type your responses directly into the yellow cells, or copy and paste your responses from another document into the cells. Press ALT+Enter to write on a new line in the same Excel cell."]
[null,"Boxes with a red corner have additional tips for data entry. Hover your cursor over them to view the tips. For optimal viewing, keep resolution to 100%."]
["\n\n\n","Drop-down menus are included in the Program Context & Partners tab. Please respond to the questions on Strategy Area Partnerships table by selecting from one of the response options included in the drop-down menu."]
[null,"Copying Information from Microsoft Word, PDF or Excel? \nStep 1:  Copy (Ctrl+C) the text you want to transfer and click in the yellow cell where you want to paste \n\nStep 2:  Click into the formula bar (fx) at the top of the screen, and paste (Ctrl+V)  -OR-  hit F2/double-click within the yellow cell to generate a flashing cursor, and then paste\n\n**If the light yellow cell is no longer yellow after you paste, or anything else goes wrong, hit Ctrl+Z to undo your action**"]
[null,"Saving and Submitting Your Work: "]
[null,"Click \"File\" from the ribbon above and then \"Save\" from the menu. If this is your first time saving this document, you will be prompted to choose a location for where this file will be saved. Please save this file as \"[ProjectAreaName]_WorkplanY1_yy-mm-dd\" and as an .xlsm version. (Note: you will see a warning message reminding you that if you change the format of the document, you may lose some of the functionality. Click \"Ok\" and save the file in your preferred location.)"]
[null,"When you are finished with this document, there are two ways to package it for submission. Option 1 - click the button below, select a folder for where you would like the final file saved, and the file will be saved with an automatically-generated filename. You will no longer be able to edit any text, but you will be able to print out the work plan template."]
[null,"Option 2 - click \"File\" from the ribbon above and then \"Save As\" from the menu or use the button below. Choose the .xls or .xlsx file type from the \"Save as type\" drop-down menu. You will see a warning sign that says \"The following features cannot be saved in macro-free workbooks: VB project\". Click \"Yes\" to save the file as a .xls or .xlsx file type. You will still be able to edit light yellow cells, but a few features from this workbook will no longer be available."]
[]
[null,"To submit this document, attach the file ending in .xls or .xlsx to your application for this NOFO in Grants.gov."]
[]
[null,"Relevant Links:"]
[]
[null,"To access the series of Technical Assistance Notes for the PS19-1901 STD PCHD strategies, click here:"]
[null,"PS19-1901 STD PCHD Technical Assistance Notes"]
[]
[null,"To find the SMART objectives builder and other materials to support your application to PS19-1901 STD PCHD, click here:"]
[null,"PS19-1901 STD PCHD Tools and Reference Materials"]
[]
[null,"To find general information on using Microsoft Excel, click here: "]
[null,"Microsoft Excel Basics"]
[]
[]
[null,"CDC estimates the average public reporting burden for this collection of information as 255 minutes per response, including the time for reviewing instructions, searching existing data/information sources, gathering and maintaining the data/information needed, and completing and reviewing the collection of information.  An agency may not conduct or sponsor, and a person is not required to respond to a collection of information unless it displays a currently valid OMB control number. Send comments regarding this burden estimate or any other aspect of this collection of information, including suggestions for reducing burden to CDC/ATSDR Information Collection Review Office, 1600 Clifton Road NE, MS D-74, Atlanta, Georgia 30333; ATTN: PRA (0920-0879). "]

{"sheet":"Program Context & Partners","index":3,"n_rows":112,"n_cols":8,"rows_kept":112,"cut":false,"hidden":false,"merged":[[32,1,32,3],[36,1,36,3],[72,1,72,3],[2,1,2,3],[17,1,17,3],[6,1,6,3],[10,1,10,3],[14,1,14,3],[9,1,9,3],[13,1,13,3],[28,1,28,3],[31,1,31,3],[35,1,35,3],[39,1,39,3],[61,1,61,3],[105,1,105,3],[75,1,75,2],[83,1,83,3],[50,1,50,3],[54,1,54,3],[58,1,58,3],[94,1,94,3],[98,1,98,3],[102,1,102,3],[101,1,101,3],[53,1,53,3],[57,1,57,3],[79,1,79,3],[76,1,76,3],[80,1,80,3],[97,1,97,3]]}
[null,null,null,null,null,"Line Spacing","Autosizing for big fields","Identifier(s)>>"]
[null,{"$f":"\"PCHD Year \" & PerformanceYear & \": Strategy Area Context and Partnerships\"","v":"PCHD Year 1: Strategy Area Context and Partnerships"},null,null,null,"20pt","this column width = 86  (B and C combined); must keep this condition true for proper autosizing"]
[null,"This page is an opportunity for you to describe some of the cross-cutting issues and partners related to your work plan activities during PCHD Year 1. ",null,null,null,"line\nline",null,"StrategyAreaID"]
[" ","Surveillance",null,null,null,null,null,1]
[]
[null,"Strategy Area Point of Contact (if different from Principal Investigator)"]
[null,null,null,null,null,null,{"$f":"B7","v":0}]
[]
[null,"Strategy Area Context"]
[null,"Use the space below to describe any contextual factors, cross-cutting issues, changes, or priorities that impact your PCHD 2019 Year 1 objectives for this strategy area. "]
[null,null,null,null,null,"line\nline\nline\nline",{"$f":"B11","v":0}]
[]
[null,"Strategy Area Risks"]
[null,"Use the space below to describe any major risks associated with implementation of the objectives under this strategy area for PCHD 2019 Year 1. "]
[null,null,null,null,null,"line\nline\nline\nline",{"$f":"B15","v":0}]
[]
[null,"Strategy Area Partnerships"]
[null,"What partners (funded and unfunded) are key and essential to meeting the strategies and activities proposed in this area? "]
[null,"Partner Type ","Brief Partner Details","Is this a New Partnership for Your Program?"]
[]
[]
[]
[]
[]
[]
[" ","Disease Investigation and Intervention ",null,"Back to Top ^",null,null,null,2]
[]
[null,"Strategy Area Point of Contact (if different from Principal Investigator)"]
[null,null,null,null,null,null,{"$f":"B29","v":0}]
[]
[null,"Strategy Area Context"]
[null,"Use the space below to describe any contextual factors, cross-cutting issues, changes, or priorities that impact your PCHD 2019 Year 1 objectives for this strategy area. "]
[null,null,null,null,null,"line\nline\nline\nline",{"$f":"B33","v":0}]
[]
[null,"Strategy Area Risks"]
[null,"Use the space below to describe any major risks associated with implementation of the objectives under this strategy area for PCHD 2019 Year 1. "]
[null,null,null,null,null,"line\nline\nline\nline",{"$f":"B37","v":0}]
[]
[null,"Strategy Area Partnerships"]
[null,"What partners (funded and unfunded) are key and essential to meeting the strategies and activities proposed in this area? "]
[null,"Partner Type ","Brief Partner Details","Is this a New Partnership for Your Program?"]
[]
[]
[]
[]
[]
[]
[" ","Screening, Diagnosis, and Treatment",null,"Back to Top ^",null,null,null,3]
[]
[null,"Strategy Area Point of Contact (if different from Principal Investigator)"]
[null,null,null,null,null,null,{"$f":"B51","v":0}]
[]
[null,"Strategy Area Context"]
[null,"Use the space below to describe any contextual factors, cross-cutting issues, changes, or priorities that impact your PCHD 2019 Year 1 objectives for this strategy area. "]
[null,null,null,null,null,"line\nline\nline\nline",{"$f":"B55","v":0}]
[]
[null,"Strategy Area Risks"]
[null,"Use the space below to describe any major risks associated with implementation of the objectives under this strategy area for PCHD 2019 Year 1. "]
[null,null,null,null,null,"line\nline\nline\nline",{"$f":"B59","v":0}]
[]
[null,"Strategy Area Partnerships"]
[null,"What partners (funded and unfunded) are key and essential to meeting the strategies and activities proposed in this area? "]
[null,"Partner Type ","Brief Partner Details","Is this a New Partnership for Your Program?"]
[]
[]
[]
[]
[]
[]
[" ","Prevention and Policy",null,"Back to Top ^",null,null,null,4]
[]
[null,"Strategy Area Point of Contact (if different from Principal Investigator)"]
[null,null,null,null,null,null,{"$f":"B73","v":0}]
[]
[null,"Strategy Area Context"]
[null,"Use the space below to describe any contextual factors, cross-cutting issues, changes, or priorities that impact your PCHD 2019 Year 1 objectives for this strategy area. ",null,null,null,"line\nline"]
[null,null,null,null,null,"line\nline\nline\nline",{"$f":"B77","v":0}]
[]
[null,"Strategy Area Risks"]
[null,"Use the space below to describe any major risks associated with implementation of the objectives under this strategy area for PCHD 2019 Year 1. "]
[null,null,null,null,null,"line\nline\nline\nline",{"$f":"B81","v":0}]
[]
[null,"Strategy Area Partnerships"]
[null,"What partners (funded and unfunded) are key and essential to meeting the strategies and activities proposed in this area? "]
[null,"Partner Type ","Brief Partner Details","Is this a New Partnership for Your Program?"]
[]
[]
[]
[]
[]
[]
[" ","Data Use for Program Improvement",null,"Back to Top ^",null,null,null,5]
[" "]
[" ","Strategy Area Point of Contact (if different from Principal Investigator)"]
[" ",null,null,null,null,null,{"$f":"B95","v":0}]
[" "]
[" ","Strategy Area Context"]
[" ","Use the space below to describe any contextual factors, cross-cutting issues, changes, or priorities that impact your PCHD 2019 Year 1 objectives for this strategy area. ",null,null,null,"line\nline"]
[" ",null,null,null,null,"line\nline\nline\nline",{"$f":"B99","v":0}]
[" "]
[" ","Strategy Area Risks"]
[" ","Use the space below to describe any major risks associated with implementation of the objectives under this strategy area for PCHD 2019 Year 1. ",null,null,null,"line\nline"]
[" ",null,null,null,null,"line\nline\nline\nline",{"$f":"B103","v":0}]
[" "]
[" ","Strategy Area Partnerships"]
[" ","What partners (funded and unfunded) are key and essential to meeting the strategies and activities proposed in this area? "]
[" ","Partner Type ","Brief Partner Details","Is this a New Partnership for Your Program?"]
[" "]
[" "]
[" "]
[" "]
[" "]

{"sheet":"Chlamydia","index":4,"n_rows":38,"n_cols":12,"rows_kept":38,"cut":false,"hidden":false,"merged":[[3,1,3,4],[5,1,5,4],[7,3,7,4],[20,3,20,4],[33,3,33,4]]}
[null,null,null,null,null,null,"Line Spacing",null,"config label","config val","Identifier(s)>>"]
[null,{"$f":"\"PCHD Year \" & PerformanceYear & \": Workplan\"","v":"PCHD Year 1: Workplan"},null,null,null,null,"20pt",null,"StrategyArea",{"$f":"INDEX(lkpStrategyAreas_ID,MATCH($J$3,lkpStrategy_ID,0))","v":1}]
[null,{"$f":"INDEX(lkpStrategyAreas_Text,MATCH($J$3,lkpStrategy_ID,0))","v":"Conduct Surveillance "},null,null,null,null,null,null,"Strategy ID",1]
[null,{"$f":"\"Strategy \" & $J$3 & \": \" & INDEX(lkpStrategy_Text,MATCH($J$3,lkpStrategy_ID,0))","v":"Strategy 1: Conduct Chlamydia (CT) surveillance"}]
[null,null,null,null,null,null,null,null,null,null,"SubStrategyID","ObjectiveID"]
[null,{"$f":"$J$3 & J6 & \": \" & INDEX(lkpSubStrategy_Text,MATCH($J$3&J6,lkpSubStrategy_ID,0))","v":"1A: Collect, manage, analyze, interpret and disseminate data on identified cases of chlamydia, ensuring timely capture of core epidemiologic variables available on laboratory reports: age, sex, county, diagnosing facility type, specimen collection date, and anatomic site(s) of infection"},null,null,null,null,"line\nline\nline",null,"SubStrategy letter","A",{"$f":"$J$3&J6","v":"1A"}]
[null,{"$f":"\"Objective \" & L8","v":"Objective 1A-1"}]
[null,"Annual Objective: Describe one objective for this strategy, using the S.M.A.R.T. objectives format",null,"Description: Briefly describe the baseline and target measures of your objective",null,null,null,null,"Objective",1,null,{"$f":"K6&\"-\"&J8","v":"1A-1"}]
[null,null,null,"Baseline","Target"]
[]
[]
[null,"Activity Description","Activity Timeframe","Output Indicator","Assigned To"]
[]
[]
[]
[]
[]
[null,"[+] Create objective"]
[null,"Applicants can submit up to three objectives for each sub-strategy; click again to hide if not needed"]
[null,{"$f":"\"Objective \" & L21","v":"Objective 1A-2"}]
[null,"Annual Objective: Describe one objective for this strategy, using the S.M.A.R.T. objectives format",null,"Description: Briefly describe the baseline and target measures of your objective",null,null,null,null,"Objective",2,null,{"$f":"K6&\"-\"&J21","v":"1A-2"}]
[null,null,null,"Baseline","Target"]
[]
[]
[null,"Activity Description","Activity Timeframe","Output Indicator","Assigned To"]
[]
[]
[]
[]
[]
[null,"[+] Create objective"]
[null,"Applicants can submit up to three objectives for each sub-strategy; click again to hide if not needed"]
[null,{"$f":"\"Objective \" & L34","v":"Objective 1A-3"}]
[null,"Annual Objective: Describe one objective for this strategy, using the S.M.A.R.T. objectives format",null,"Description: Briefly describe the baseline and target measures of your objective",null,null,null,null,"Objective",3,null,{"$f":"K6&\"-\"&J34","v":"1A-3"}]
[null,null,null,"Baseline","Target"]
[]
[]
[null,"Activity Description","Activity Timeframe","Output Indicator","Assigned To"]

{"sheet":"Gonorrhea","index":5,"n_rows":76,"n_cols":12,"rows_kept":76,"cut":false,"hidden":false,"merged":[[45,3,45,4],[58,3,58,4],[71,3,71,4],[3,1,3,4],[5,1,5,4],[7,3,7,4],[20,3,20,4],[33,3,33,4],[43,1,43,4]]}
[null,null,null,null,null,null,"Line Spacing",null,"config label","config val","Identifier(s)>>"]
[null,{"$f":"\"PCHD Year \" & PerformanceYear & \": Workplan\"","v":"PCHD Year 1: Workplan"},null,null,null,null,"20pt",null,"StrategyArea",{"$f":"INDEX(lkpStrategyAreas_ID,MATCH($J$3,lkpStrategy_ID,0))","v":1}]
[null,{"$f":"INDEX(lkpStrategyAreas_Text,MATCH($J$3,lkpStrategy_ID,0))","v":"Conduct Surveillance "},null,null,null,null,null,null,"Strategy ID",2]
[null,{"$f":"\"Strategy \" & $J$3 & \": \" & INDEX(lkpStrategy_Text,MATCH($J$3,lkpStrategy_ID,0))","v":"Strategy 2: Conduct Gonorrhea (GC) surveillance"}]
[null,null,null,null,null,null,null,null,null,null,"SubStrategyID","ObjectiveID"]
[null,{"$f":"$J$3 & J6 & \": \" & INDEX(lkpSubStrategy_Text,MATCH($J$3&J6,lkpSubStrategy_ID,0))","v":"2A: Collect, manage, analyze, interpret and disseminate data on identified cases of gonorrhea, ensuring timely capture of core epidemiologic variables available on laboratory reports: age, sex, county, diagnosing facility type, specimen collection date, and anatomic site(s) of infection"},null,null,null,null,"line\nline\nline",null,"SubStrategy letter","A",{"$f":"$J$3&J6","v":"2A"}]
[null,{"$f":"\"Objective \" & L8","v":"Objective 2A-1"}]
[null,"Annual Objective: Describe one objective for this strategy, using the S.M.A.R.T. objectives format",null,"Description: Briefly describe the baseline and target measures of your objective",null,null,null,null,"Objective",1,null,{"$f":"K6&\"-\"&J8","v":"2A-1"}]
[null,null,null,"Baseline","Target"]
[]
[]
[null,"Activity Description","Activity Timeframe","Output Indicator","Assigned To"]
[]
[]
[]
[]
[]
[null,"[+] Create objective"]
[null,"Applicants can submit up to three objectives for each sub-strategy; click again to hide if not needed"]
[null,{"$f":"\"Objective \" & L21","v":"Objective 2A-2"}]
[null,"Annual Objective: Describe one objective for this strategy, using the S.M.A.R.T. objectives format",null,"Description: Briefly describe the baseline and target measures of your objective",null,null,null,null,"Objective",2,null,{"$f":"K6&\"-\"&J21","v":"2A-2"}]
[null,null,null,"Baseline","Target"]
[]
[]
[null,"Activity Description","Activity Timeframe","Output Indicator","Assigned To"]
[]
[]
[]
[]
[]
[null,"[+] Create objective"]
[null,"Applicants can submit up to three objectives for each sub-strategy; click again to hide if not needed"]
[null,{"$f":"\"Objective \" & L34","v":"Objective 2A-3"}]
[null,"Annual Objective: Describe one objective for this strategy, using the S.M.A.R.T. objectives format",null,"Description: Briefly describe the baseline and target measures of your objective",null,null,null,null,"Objective",3,null,{"$f":"K6&\"-\"&J34","v":"2A-3"}]
[null,null,null,"Baseline","Target"]
[]
[]
[null,"Activity Description","Activity Timeframe","Output Indicator","Assigned To"]
[]
[]
[]
[]
[]
["\r\n\r\n\r\n\r\n\r\n",{"$f":"$J$3 & J44 & \": \" & INDEX(lkpSubStrategy_Text,MATCH($J$3&J44,lkpSubStrategy_ID,0))","v":"2B: To better understand GC epidemiology, conduct provider follow-up and, if needed, brief patient interviews of a random sample of GC cases from a well-defined high morbidity area or the project area as a whole. Ensure timely and quality capture of core epidemiologic variables including, but not limited to: age, sex, county, diagnosing facility type, specimen collection date, anatomic site(s) of infection, race/ethnicity, gender identity/sexual orientation, sex of sex partner(s), clinical signs/symptoms, pregnancy status, HIV status, partner treatment (i.e., EPT provision), gonorrhea-related sequelae (i.e., presence of pelvic inflammatory disease (PID), disseminated gonococcal infection (DGI), etc.), substance use, date of diagnosis, treatment received (including names and doses of treatment), date of treatment, co-infection with other STDs, and history of GC infection"},null,null,null,null,"line\nline\nline",null,"SubStrategy letter","B",{"$f":"$J$3&J44","v":"2B"}]
[null,{"$f":"\"Objective \" & L46","v":"Objective 2B-1"}]
[null,"Annual Objective: Describe one objective for this strategy, using the S.M.A.R.T. objectives format",null,"Description: Briefly describe the baseline and target measures of your objective",null,null,null,null,"Objective",1,null,{"$f":"K44&\"-\"&J46","v":"2B-1"}]
[null,null,null,"Baseline","Target"]
[]
[]
[null,"Activity Description","Activity Timeframe","Output Indicator","Assigned To"]
[]
[]
[]
[]
[]
[null,"[+] Create objective"]
[null,"Applicants can submit up to three objectives for each sub-strategy; click again to hide if not needed"]
[null,{"$f":"\"Objective \" & L59","v":"Objective 2B-2"}]
[null,"Annual Objective: Describe one objective for this strategy, using the S.M.A.R.T. objectives format",null,"Description: Briefly describe the baseline and target measures of your objective",null,null,null,null,"Objective",2,null,{"$f":"K44&\"-\"&J59","v":"2B-2"}]
[null,null,null,"Baseline","Target"]
[]
[]
[null,"Activity Description","Activity Timeframe","Output Indicator","Assigned To"]
[]
[]
[]
[]
[]
[null,"[+] Create objective"]
[null,"Applicants can submit up to three objectives for each sub-strategy; click again to hide if not needed"]
[null,{"$f":"\"Objective \" & L72","v":"Objective 2B-3"}]
[null,"Annual Objective: Describe one objective for this strategy, using the S.M.A.R.T. objectives format",null,"Description: Briefly describe the baseline and target measures of your objective",null,null,null,null,"Objective",3,null,{"$f":"K44&\"-\"&J72","v":"2B-3"}]
[null,null,null,"Baseline","Target"]
[]
[]
[null,"Activity Description","Activity Timeframe","Output Indicator","Assigned To"]

{"sheet":"Syphilis","index":6,"n_rows":76,"n_cols":12,"rows_kept":76,"cut":false,"hidden":false,"merged":[[45,3,45,4],[58,3,58,4],[71,3,71,4],[3,1,3,4],[5,1,5,4],[7,3,7,4],[20,3,20,4],[33,3,33,4],[43,1,43,4]]}
[null,null,null,null,null,null,"Line Spacing",null,"config label","config val","Identifier(s)>>"]
[null,{"$f":"\"PCHD Year \" & PerformanceYear & \": Workplan\"","v":"PCHD Year 1: Workplan"},null,null,null,null,"20pt",null,"StrategyArea",{"$f":"INDEX(lkpStrategyAreas_ID,MATCH($J$3,lkpStrategy_ID,0))","v":1}]
[null,{"$f":"INDEX(lkpStrategyAreas_Text,MATCH($J$3,lkpStrategy_ID,0))","v":"Conduct Surveillance "},null,null,null,null,null,null,"Strategy ID",3]
[null,{"$f":"\"Strategy \" & $J$3 & \": \" & INDEX(lkpStrategy_Text,MATCH($J$3,lkpStrategy_ID,0))","v":"Strategy 3: Conduct syphilis surveillance"}]
[null,null,null,null,null,null,null,null,null,null,"SubStrategyID","ObjectiveID"]
[null,{"$f":"$J$3 & J6 & \": \" & INDEX(lkpSubStrategy_Text,MATCH($J$3&J6,lkpSubStrategy_ID,0))","v":"3A: Collect, manage, analyze, interpret and disseminate data on identified cases of syphilis, ensuring timely capture of core epidemiologic variables available on laboratory reports: age, sex, county, diagnosing facility type, and specimen collection date"},null,null,null,null,"line\nline\nline",null,"SubStrategy letter","A",{"$f":"$J$3&J6","v":"3A"}]
[null,{"$f":"\"Objective \" & L8","v":"Objective 3A-1"}]
[null,"Annual Objective: Describe one objective for this strategy, using the S.M.A.R.T. objectives format",null,"Description: Briefly describe the baseline and target measures of your objective",null,null,null,null,"Objective",1,null,{"$f":"K6&\"-\"&J8","v":"3A-1"}]
[null,null,null,"Baseline","Target"]
[]
[]
[null,"Activity Description","Activity Timeframe","Output Indicator","Assigned To"]
[]
[]
[]
[]
[]
[null,"[+] Create objective"]
[null,"Applicants can submit up to three objectives for each sub-strategy; click again to hide if not needed"]
[null,{"$f":"\"Objective \" & L21","v":"Objective 3A-2"}]
[null,"Annual Objective: Describe one objective for this strategy, using the S.M.A.R.T. objectives format",null,"Description: Briefly describe the baseline and target measures of your objective",null,null,null,null,"Objective",2,null,{"$f":"K6&\"-\"&J21","v":"3A-2"}]
[null,null,null,"Baseline","Target"]
[]
[]
[null,"Activity Description","Activity Timeframe","Output Indicator","Assigned To"]
[]
[]
[]
[]
[]
[null,"[+] Create objective"]
[null,"Applicants can submit up to three objectives for each sub-strategy; click again to hide if not needed"]
[null,{"$f":"\"Objective \" & L34","v":"Objective 3A-3"}]
[null,"Annual Objective: Describe one objective for this strategy, using the S.M.A.R.T. objectives format",null,"Description: Briefly describe the baseline and target measures of your objective",null,null,null,null,"Objective",3,null,{"$f":"K6&\"-\"&J34","v":"3A-3"}]
[null,null,null,"Baseline","Target"]
[]
[]
[null,"Activity Description","Activity Timeframe","Output Indicator","Assigned To"]
[]
[]
[]
[]
[]
["\r\n\r\n\r\n",{"$f":"$J$3 & J44 & \": \" & INDEX(lkpSubStrategy_Text,MATCH($J$3&J44,lkpSubStrategy_ID,0))","v":"3B: To better understand primary and secondary (P&S) syphilis epidemiology, conduct provider follow-up and, if needed, brief patient interviews of all cases of P&S syphilis. Ensure timely and quality capture of core epidemiologic variables including, but not limited to: age, sex, county, diagnosing facility type, specimen collection date, race/ethnicity, gender identity/sexual orientation, sex of sex partner(s), pregnancy status, clinical signs/symptoms, HIV status, substance use, treatment received, date of treatment, and history of syphilis"},null,null,null,null,"line\nline\nline",null,"SubStrategy letter","B",{"$f":"$J$3&J44","v":"3B"}]
[null,{"$f":"\"Objective \" & L46","v":"Objective 3B-1"}]
[null,"Annual Objective: Describe one objective for this strategy, using the S.M.A.R.T. objectives format",null,"Description: Briefly describe the baseline and target measures of your objective",null,null,null,null,"Objective",1,null,{"$f":"K44&\"-\"&J46","v":"3B-1"}]
[null,null,null,"Baseline","Target"]
[]
[]
[null,"Activity Description","Activity Timeframe","Output Indicator","Assigned To"]
[]
[]
[]
[]
[]
[null,"[+] Create objective"]
[null,"Applicants can submit up to three objectives for each sub-strategy; click again to hide if not needed"]
[null,{"$f":"\"Objective \" & L59","v":"Objective 3B-2"}]
[null,"Annual Objective: Describe one objective for this strategy, using the S.M.A.R.T. objectives format",null,"Description: Briefly describe the baseline and target measures of your objective",null,null,null,null,"Objective",2,null,{"$f":"K44&\"-\"&J59","v":"3B-2"}]
[null,null,null,"Baseline","Target"]
[]
[]
[null,"Activity Description","Activity Timeframe","Output Indicator","Assigned To"]
[]
[]
[]
[]
[]
[null,"[+] Create objective"]
[null,"Applicants can submit up to three objectives for each sub-strategy; click again to hide if not needed"]
[null,{"$f":"\"Objective \" & L72","v":"Objective 3B-3"}]
[null,"Annual Objective: Describe one objective for this strategy, using the S.M.A.R.T. objectives format",null,"Description: Briefly describe the baseline and target measures of your objective",null,null,null,null,"Objective",3,null,{"$f":"K44&\"-\"&J72","v":"3B-3"}]
[null,null,null,"Baseline","Target"]
[]
[]
[null,"Activity Description","Activity Timeframe","Output Indicator","Assigned To"]

{"sheet":"Congenital Syphilis","index":7,"n_rows":114,"n_cols":12,"rows_kept":114,"cut":false,"hidden":false,"merged":[[109,3,109,4],[45,3,45,4],[58,3,58,4],[71,3,71,4],[81,1,81,4],[83,3,83,4],[96,3,96,4],[43,1,43,4],[3,1,3,4],[5,1,5,4],[7,3,7,4],[20,3,20,4],[33,3,33,4]]}
[null,null,null,null,null,null,"Line Spacing",null,"config label","config val","Identifier(s)>>"]
[null,{"$f":"\"PCHD Year \" & PerformanceYear & \": Workplan\"","v":"PCHD Year 1: Workplan"},null,null,null,null,"20pt",null,"StrategyArea",{"$f":"INDEX(lkpStrategyAreas_ID,MATCH($J$3,lkpStrategy_ID,0))","v":1}]
[null,{"$f":"INDEX(lkpStrategyAreas_Text,MATCH($J$3,lkpStrategy_ID,0))","v":"Conduct Surveillance "},null,null,null,null,null,null,"Strategy ID",4]
[null,{"$f":"\"Strategy \" & $J$3 & \": \" & INDEX(lkpStrategy_Text,MATCH($J$3,lkpStrategy_ID,0))","v":"Strategy 4: Conduct congenital syphilis (CS) surveillance"}]
[null,null,null,null,null,null,null,null,null,null,"SubStrategyID","ObjectiveID"]
["\r\n\r\n\r\n\r\n",{"$f":"$J$3 & J6 & \": \" & INDEX(lkpSubStrategy_Text,MATCH($J$3&J6,lkpSubStrategy_ID,0))","v":"4A: To better understand CS epidemiology, conduct provider and mother follow-up and review medical records of all reported CS cases. Based on information collected, manage, analyze, and disseminate data on reported cases of CS, ensuring timely and quality capture of epidemiologic core maternal, fetal, and neonatal variables including, but not limited to: mother's age, race/ethnicity, county, stage of syphilis diagnosed during pregnancy, date(s) of 1st prenatal visit, syphilis testing (and corresponding titers), treatment(s) and delivery; HIV status of mother, substance use, clinical settings of diagnosis and care; and fetal and neonatal information such as ultrasound findings, physical and laboratory findings, and HIV status of infant at birth"},null,null,null,null,"line\nline\nline",null,"SubStrategy letter","A",{"$f":"$J$3&J6","v":"4A"}]
[null,{"$f":"\"Objective \" & L8","v":"Objective 4A-1"}]
[null,"Annual Objective: Describe one objective for this strategy, using the S.M.A.R.T. objectives format",null,"Description: Briefly describe the baseline and target measures of your objective",null,null,null,null,"Objective",1,null,{"$f":"K6&\"-\"&J8","v":"4A-1"}]
[null,null,null,"Baseline","Target"]
[]
[]
[null,"Activity Description","Activity Timeframe","Output Indicator","Assigned To"]
[]
[]
[]
[]
[]
[null,"[+] Create objective"]
[null,"Applicants can submit up to three objectives for each sub-strategy; click again to hide if not needed"]
[null,{"$f":"\"Objective \" & L21","v":"Objective 4A-2"}]
[null,"Annual Objective: Describe one objective for this strategy, using the S.M.A.R.T. objectives format",null,"Description: Briefly describe the baseline and target measures of your objective",null,null,null,null,"Objective",2,null,{"$f":"K6&\"-\"&J21","v":"4A-2"}]
[null,null,null,"Baseline","Target"]
[]
[]
[null,"Activity Description","Activity Timeframe","Output Indicator","Assigned To"]
[]
[]
[]
[]
[]
[null,"[+] Create objective"]
[null,"Applicants can submit up to three objectives for each sub-strategy; click again to hide if not needed"]
[null,{"$f":"\"Objective \" & L34","v":"Objective 4A-3"}]
[null,"Annual Objective: Describe one objective for this strategy, using the S.M.A.R.T. objectives format",null,"Description: Briefly describe the baseline and target measures of your objective",null,null,null,null,"Objective",3,null,{"$f":"K6&\"-\"&J34","v":"4A-3"}]
[null,null,null,"Baseline","Target"]
[]
[]
[null,"Activity Description","Activity Timeframe","Output Indicator","Assigned To"]
[]
[]
[]
[]
[]
[null,{"$f":"$J$3 & J44 & \": \" & INDEX(lkpSubStrategy_Text,MATCH($J$3&J44,lkpSubStrategy_ID,0))","v":"4B: For applicants with 10 or more cases of congenital syphilis in the previous calendar year: Improve methods to match vital statistics birth and mortality data with syphilis surveillance data to review syphilis testing practices among women who delivered a stillborn baby, identify missed cases of syphilis-related stillbirth, and strengthen CS case report data"},null,null,null,null,"line\nline\nline",null,"SubStrategy letter","B",{"$f":"$J$3&J44","v":"4B"}]
[null,{"$f":"\"Objective \" & L46","v":"Objective 4B-1"}]
[null,"Annual Objective: Describe one objective for this strategy, using the S.M.A.R.T. objectives format",null,"Description: Briefly describe the baseline and target measures of your objective",null,null,null,null,"Objective",1,null,{"$f":"K44&\"-\"&J46","v":"4B-1"}]
[null,null,null,"Baseline","Target"]
[]
[]
[null,"Activity Description","Activity Timeframe","Output Indicator","Assigned To"]
[]
[]
[]
[]
[]
[null,"[+] Create objective"]
[null,"Applicants can submit up to three objectives for each sub-strategy; click again to hide if not needed"]
[null,{"$f":"\"Objective \" & L59","v":"Objective 4B-2"}]
[null,"Annual Objective: Describe one objective for this strategy, using the S.M.A.R.T. objectives format",null,"Description: Briefly describe the baseline and target measures of your objective",null,null,null,null,"Objective",2,null,{"$f":"K44&\"-\"&J59","v":"4B-2"}]
[null,null,null,"Baseline","Target"]
[]
[]
[null,"Activity Description","Activity Timeframe","Output Indicator","Assigned To"]
[]
[]
[]
[]
[]
[null,"[+] Create objective"]
[null,"Applicants can submit up to three objectives for each sub-strategy; click again to hide if not needed"]
[null,{"$f":"\"Objective \" & L72","v":"Objective 4B-3"}]
[null,"Annual Objective: Describe one objective for this strategy, using the S.M.A.R.T. objectives format",null,"Description: Briefly describe the baseline and target measures of your objective",null,null,null,null,"Objective",3,null,{"$f":"K44&\"-\"&J72","v":"4B-3"}]
[null,null,null,"Baseline","Target"]
[]
[]
[null,"Activity Description","Activity Timeframe","Output Indicator","Assigned To"]
[]
[]
[]
[]
[]
[null,{"$f":"$J$3 & J82 & \": \" & INDEX(lkpSubStrategy_Text,MATCH($J$3&J82,lkpSubStrategy_ID,0))","v":"4C: For applicants with 10 or more cases of congenital syphilis in the previous calendar year: Strengthen CS morbidity and mortality case review boards at the local and/or state level to help identify causes of CS and develop interventions to address causes"},null,null,null,null,"line\nline\nline",null,"SubStrategy letter","C",{"$f":"$J$3&J82","v":"4C"}]
[null,{"$f":"\"Objective \" & L84","v":"Objective 4C-1"}]
[null,"Annual Objective: Describe one objective for this strategy, using the S.M.A.R.T. objectives format",null,"Description: Briefly describe the baseline and target measures of your objective",null,null,null,null,"Objective",1,null,{"$f":"K82&\"-\"&J84","v":"4C-1"}]
[null,null,null,"Baseline","Target"]
[]
[]
[null,"Activity Description","Activity Timeframe","Output Indicator","Assigned To"]
[]
[]
[]
[]
[]
[null,"[+] Create objective"]
[null,"Applicants can submit up to three objectives for each sub-strategy; click again to hide if not needed"]
[null,{"$f":"\"Objective \" & L97","v":"Objective 4C-2"}]
[null,"Annual Objective: Describe one objective for this strategy, using the S.M.A.R.T. objectives format",null,"Description: Briefly describe the baseline and target measures of your objective",null,null,null,null,"Objective",2,null,{"$f":"K82&\"-\"&J97","v":"4C-2"}]
[null,null,null,"Baseline","Target"]
[]
[]
[null,"Activity Description","Activity Timeframe","Output Indicator","Assigned To"]
[]
[]
[]
[]
[]
[null,"[+] Create objective"]
[null,"Applicants can submit up to three objectives for each sub-strategy; click again to hide if not needed"]
[null,{"$f":"\"Objective \" & L110","v":"Objective 4C-3"}]
[null,"Annual Objective: Describe one objective for this strategy, using the S.M.A.R.T. objectives format",null,"Description: Briefly describe the baseline and target measures of your objective",null,null,null,null,"Objective",3,null,{"$f":"K82&\"-\"&J110","v":"4C-3"}]
[null,null,null,"Baseline","Target"]
[]
[]
[null,"Activity Description","Activity Timeframe","Output Indicator","Assigned To"]

{"sheet":"Adverse Outcomes","index":8,"n_rows":38,"n_cols":12,"rows_kept":38,"cut":false,"hidden":false,"merged":[[3,1,3,4],[5,1,5,4],[7,3,7,4],[20,3,20,4],[33,3,33,4]]}
[null,null,null,null,null,null,"Line Spacing",null,"config label","config val","Identifier(s)>>"]
[null,{"$f":"\"PCHD Year \" & PerformanceYear & \": Workplan\"","v":"PCHD Year 1: Workplan"},null,null,null,null,"20pt",null,"StrategyArea",{"$f":"INDEX(lkpStrategyAreas_ID,MATCH($J$3,lkpStrategy_ID,0))","v":1}]
[null,{"$f":"INDEX(lkpStrategyAreas_Text,MATCH($J$3,lkpStrategy_ID,0))","v":"Conduct Surveillance "},null,null,null,null,null,null,"Strategy ID",5]
[null,{"$f":"\"Strategy \" & $J$3 & \": \" & INDEX(lkpStrategy_Text,MATCH($J$3,lkpStrategy_ID,0))","v":"Strategy 5: Conduct surveillance of adverse outcomes of STDs"}]
[null,null,null,null,null,null,null,null,null,null,"SubStrategyID","ObjectiveID"]
[null,{"$f":"$J$3 & J6 & \": \" & INDEX(lkpSubStrategy_Text,MATCH($J$3&J6,lkpSubStrategy_ID,0))","v":"5A: Conduct active surveillance of adverse outcomes of adult syphilis including neurosyphilis and otic and ocular syphilis through sentinel approaches, collecting variables including, but not limited to: neurological manifestations, ocular manifestations, otic manifestations, and late clinical manifestations. These are in addition to the stage of syphilis and the core epidemiologic variables listed for P&S syphilis above"},null,null,null,null,"line\nline\nline",null,"SubStrategy letter","A",{"$f":"$J$3&J6","v":"5A"}]
[null,{"$f":"\"Objective \" & L8","v":"Objective 5A-1"}]
[null,"Annual Objective: Describe one objective for this strategy, using the S.M.A.R.T. objectives format",null,"Description: Briefly describe the baseline and target measures of your objective",null,null,null,null,"Objective",1,null,{"$f":"K6&\"-\"&J8","v":"5A-1"}]
[null,null,null,"Baseline","Target"]
[]
[]
[null,"Activity Description","Activity Timeframe","Output Indicator","Assigned To"]
[]
[]
[]
[]
[]
[null,"[+] Create objective"]
[null,"Applicants can submit up to three objectives for each sub-strategy; click again to hide if not needed"]
[null,{"$f":"\"Objective \" & L21","v":"Objective 5A-2"}]
[null,"Annual Objective: Describe one objective for this strategy, using the S.M.A.R.T. objectives format",null,"Description: Briefly describe the baseline and target measures of your objective",null,null,null,null,"Objective",2,null,{"$f":"K6&\"-\"&J21","v":"5A-2"}]
[null,null,null,"Baseline","Target"]
[]
[]
[null,"Activity Description","Activity Timeframe","Output Indicator","Assigned To"]
[]
[]
[]
[]
[]
[null,"[+] Create objective"]
[null,"Applicants can submit up to three objectives for each sub-strategy; click again to hide if not needed"]
[null,{"$f":"\"Objective \" & L34","v":"Objective 5A-3"}]
[null,"Annual Objective: Describe one objective for this strategy, using the S.M.A.R.T. objectives format",null,"Description: Briefly describe the baseline and target measures of your objective",null,null,null,null,"Objective",3,null,{"$f":"K6&\"-\"&J34","v":"5A-3"}]
[null,null,null,"Baseline","Target"]
[]
[]
[null,"Activity Description","Activity Timeframe","Output Indicator","Assigned To"]

{"sheet":"Outbreak","index":9,"n_rows":76,"n_cols":12,"rows_kept":76,"cut":false,"hidden":false,"merged":[[45,3,45,4],[58,3,58,4],[71,3,71,4],[3,1,3,4],[5,1,5,4],[7,3,7,4],[20,3,20,4],[33,3,33,4],[43,1,43,4]]}
[null,null,null,null,null,null,"Line Spacing",null,"config label","config val","Identifier(s)>>"]
[null,{"$f":"\"PCHD Year \" & PerformanceYear & \": Workplan\"","v":"PCHD Year 1: Workplan"},null,null,null,null,"20pt",null,"StrategyArea",{"$f":"INDEX(lkpStrategyAreas_ID,MATCH($J$3,lkpStrategy_ID,0))","v":2}]
[null,{"$f":"INDEX(lkpStrategyAreas_Text,MATCH($J$3,lkpStrategy_ID,0))","v":"Conduct Disease Investigation and Intervention"},null,null,null,null,null,null,"Strategy ID",6]
[null,{"$f":"\"Strategy \" & $J$3 & \": \" & INDEX(lkpStrategy_Text,MATCH($J$3,lkpStrategy_ID,0))","v":"Strategy 6: Respond to STD-related outbreaks"}]
[null,null,null,null,null,null,null,null,null,null,"SubStrategyID","ObjectiveID"]
[null,{"$f":"$J$3 & J6 & \": \" & INDEX(lkpSubStrategy_Text,MATCH($J$3&J6,lkpSubStrategy_ID,0))","v":"6A: Review STD surveillance data by the core epidemiologic variables at regular intervals to identify outbreaks and other significant changes in STD epidemiology"},null,null,null,null,"line\nline\nline",null,"SubStrategy letter","A",{"$f":"$J$3&J6","v":"6A"}]
[null,{"$f":"\"Objective \" & L8","v":"Objective 6A-1"}]
[null,"Annual Objective: Describe one objective for this strategy, using the S.M.A.R.T. objectives format",null,"Description: Briefly describe the baseline and target measures of your objective",null,null,null,null,"Objective",1,null,{"$f":"K6&\"-\"&J8","v":"6A-1"}]
[null,null,null,"Baseline","Target"]
[]
[]
[null,"Activity Description","Activity Timeframe","Output Indicator","Assigned To"]
[]
[]
[]
[]
[]
[null,"[+] Create objective"]
[null,"Applicants can submit up to three objectives for each sub-strategy; click again to hide if not needed"]
[null,{"$f":"\"Objective \" & L21","v":"Objective 6A-2"}]
[null,"Annual Objective: Describe one objective for this strategy, using the S.M.A.R.T. objectives format",null,"Description: Briefly describe the baseline and target measures of your objective",null,null,null,null,"Objective",2,null,{"$f":"K6&\"-\"&J21","v":"6A-2"}]
[null,null,null,"Baseline","Target"]
[]
[]
[null,"Activity Description","Activity Timeframe","Output Indicator","Assigned To"]
[]
[]
[]
[]
[]
[null,"[+] Create objective"]
[null,"Applicants can submit up to three objectives for each sub-strategy; click again to hide if not needed"]
[null,{"$f":"\"Objective \" & L34","v":"Objective 6A-3"}]
[null,"Annual Objective: Describe one objective for this strategy, using the S.M.A.R.T. objectives format",null,"Description: Briefly describe the baseline and target measures of your objective",null,null,null,null,"Objective",3,null,{"$f":"K6&\"-\"&J34","v":"6A-3"}]
[null,null,null,"Baseline","Target"]
[]
[]
[null,"Activity Description","Activity Timeframe","Output Indicator","Assigned To"]
[]
[]
[]
[]
[]
[null,{"$f":"$J$3 & J44 & \": \" & INDEX(lkpSubStrategy_Text,MATCH($J$3&J44,lkpSubStrategy_ID,0))","v":"6B: Develop and maintain an outbreak capacity plan to respond to significant changes in STD epidemiology. Ensure that staff are trained and ready to implement the outbreak capacity plan"},null,null,null,null,"line\nline\nline",null,"SubStrategy letter","B",{"$f":"$J$3&J44","v":"6B"}]
[null,{"$f":"\"Objective \" & L46","v":"Objective 6B-1"}]
[null,"Annual Objective: Describe one objective for this strategy, using the S.M.A.R.T. objectives format",null,"Description: Briefly describe the baseline and target measures of your objective",null,null,null,null,"Objective",1,null,{"$f":"K44&\"-\"&J46","v":"6B-1"}]
[null,null,null,"Baseline","Target"]
[]
[]
[null,"Activity Description","Activity Timeframe","Output Indicator","Assigned To"]
[]
[]
[]
[]
[]
[null,"[+] Create objective"]
[null,"Applicants can submit up to three objectives for each sub-strategy; click again to hide if not needed"]
[null,{"$f":"\"Objective \" & L59","v":"Objective 6B-2"}]
[null,"Annual Objective: Describe one objective for this strategy, using the S.M.A.R.T. objectives format",null,"Description: Briefly describe the baseline and target measures of your objective",null,null,null,null,"Objective",2,null,{"$f":"K44&\"-\"&J59","v":"6B-2"}]
[null,null,null,"Baseline","Target"]
[]
[]
[null,"Activity Description","Activity Timeframe","Output Indicator","Assigned To"]
[]
[]
[]
[]
[]
[null,"[+] Create objective"]
[null,"Applicants can submit up to three objectives for each sub-strategy; click again to hide if not needed"]
[null,{"$f":"\"Objective \" & L72","v":"Objective 6B-3"}]
[null,"Annual Objective: Describe one objective for this strategy, using the S.M.A.R.T. objectives format",null,"Description: Briefly describe the baseline and target measures of your objective",null,null,null,null,"Objective",3,null,{"$f":"K44&\"-\"&J72","v":"6B-3"}]
[null,null,null,"Baseline","Target"]
[]
[]
[null,"Activity Description","Activity Timeframe","Output Indicator","Assigned To"]

{"sheet":"Partner Services for Women","index":10,"n_rows":114,"n_cols":12,"rows_kept":114,"cut":false,"hidden":false,"merged":[[109,3,109,4],[45,3,45,4],[58,3,58,4],[71,3,71,4],[81,1,81,4],[83,3,83,4],[96,3,96,4],[43,1,43,4],[3,1,3,4],[5,1,5,4],[7,3,7,4],[20,3,20,4],[33,3,33,4]]}
[null,null,null,null,null,null,"Line Spacing",null,"config label","config val","Identifier(s)>>"]
[null,{"$f":"\"PCHD Year \" & PerformanceYear & \": Workplan\"","v":"PCHD Year 1: Workplan"},null,null,null,null,"20pt",null,"StrategyArea",{"$f":"INDEX(lkpStrategyAreas_ID,MATCH($J$3,lkpStrategy_ID,0))","v":2}]
[null,{"$f":"INDEX(lkpStrategyAreas_Text,MATCH($J$3,lkpStrategy_ID,0))","v":"Conduct Disease Investigation and Intervention"},null,null,null,null,null,null,"Strategy ID",7]
[null,{"$f":"\"Strategy \" & $J$3 & \": \" & INDEX(lkpStrategy_Text,MATCH($J$3,lkpStrategy_ID,0))","v":"Strategy 7: Conduct health department disease investigation for pregnant women and other reproductive-age women with syphilis"}]
[null,null,null,null,null,null,null,null,null,null,"SubStrategyID","ObjectiveID"]
[null,{"$f":"$J$3 & J6 & \": \" & INDEX(lkpSubStrategy_Text,MATCH($J$3&J6,lkpSubStrategy_ID,0))","v":"7A: Prioritize for investigation all reported cases among females of reproductive age and reactive serology, including provider follow-up to confirm stage, treatment and pregnancy status"},null,null,null,null,"line\nline\nline",null,"SubStrategy letter","A",{"$f":"$J$3&J6","v":"7A"}]
[null,{"$f":"\"Objective \" & L8","v":"Objective 7A-1"}]
[null,"Annual Objective: Describe one objective for this strategy, using the S.M.A.R.T. objectives format",null,"Description: Briefly describe the baseline and target measures of your objective",null,null,null,null,"Objective",1,null,{"$f":"K6&\"-\"&J8","v":"7A-1"}]
[null,null,null,"Baseline","Target"]
[]
[]
[null,"Activity Description","Activity Timeframe","Output Indicator","Assigned To"]
[]
[]
[]
[]
[]
[null,"[+] Create objective"]
[null,"Applicants can submit up to three objectives for each sub-strategy; click again to hide if not needed"]
[null,{"$f":"\"Objective \" & L21","v":"Objective 7A-2"}]
[null,"Annual Objective: Describe one objective for this strategy, using the S.M.A.R.T. objectives format",null,"Description: Briefly describe the baseline and target measures of your objective",null,null,null,null,"Objective",2,null,{"$f":"K6&\"-\"&J21","v":"7A-2"}]
[null,null,null,"Baseline","Target"]
[]
[]
[null,"Activity Description","Activity Timeframe","Output Indicator","Assigned To"]
[]
[]
[]
[]
[]
[null,"[+] Create objective"]
[null,"Applicants can submit up to three objectives for each sub-strategy; click again to hide if not needed"]
[null,{"$f":"\"Objective \" & L34","v":"Objective 7A-3"}]
[null,"Annual Objective: Describe one objective for this strategy, using the S.M.A.R.T. objectives format",null,"Description: Briefly describe the baseline and target measures of your objective",null,null,null,null,"Objective",3,null,{"$f":"K6&\"-\"&J34","v":"7A-3"}]
[null,null,null,"Baseline","Target"]
[]
[]
[null,"Activity Description","Activity Timeframe","Output Indicator","Assigned To"]
[]
[]
[]
[]
[]
["\r\n\r\n\r\n",{"$f":"$J$3 & J44 & \": \" & INDEX(lkpSubStrategy_Text,MATCH($J$3&J44,lkpSubStrategy_ID,0))","v":"7B: Regardless of pregnancy status, conduct follow-up on new syphilis cases among women of reproductive age, to obtain more information, if needed, on treatment and other information needed to ensure linkage to related STD, MCH, and HIV prevention and other services. For those who are pregnant, investigation should also include follow-up with the pregnant female, prenatal care providers, birthing centers, and neonatal care providers as needed to ensure adequate maternal follow up and stillbirth and neonatal evaluations per clinical guidelines"},null,null,null,null,"line\nline\nline",null,"SubStrategy letter","B",{"$f":"$J$3&J44","v":"7B"}]
[null,{"$f":"\"Objective \" & L46","v":"Objective 7B-1"}]
[null,"Annual Objective: Describe one objective for this strategy, using the S.M.A.R.T. objectives format",null,"Description: Briefly describe the baseline and target measures of your objective",null,null,null,null,"Objective",1,null,{"$f":"K44&\"-\"&J46","v":"7B-1"}]
[null,null,null,"Baseline","Target"]
[]
[]
[null,"Activity Description","Activity Timeframe","Output Indicator","Assigned To"]
[]
[]
[]
[]
[]
[null,"[+] Create objective"]
[null,"Applicants can submit up to three objectives for each sub-strategy; click again to hide if not needed"]
[null,{"$f":"\"Objective \" & L59","v":"Objective 7B-2"}]
[null,"Annual Objective: Describe one objective for this strategy, using the S.M.A.R.T. objectives format",null,"Description: Briefly describe the baseline and target measures of your objective",null,null,null,null,"Objective",2,null,{"$f":"K44&\"-\"&J59","v":"7B-2"}]
[null,null,null,"Baseline","Target"]
[]
[]
[null,"Activity Description","Activity Timeframe","Output Indicator","Assigned To"]
[]
[]
[]
[]
[]
[null,"[+] Create objective"]
[null,"Applicants can submit up to three objectives for each sub-strategy; click again to hide if not needed"]
[null,{"$f":"\"Objective \" & L72","v":"Objective 7B-3"}]
[null,"Annual Objective: Describe one objective for this strategy, using the S.M.A.R.T. objectives format",null,"Description: Briefly describe the baseline and target measures of your objective",null,null,null,null,"Objective",3,null,{"$f":"K44&\"-\"&J72","v":"7B-3"}]
[null,null,null,"Baseline","Target"]
[]
[]
[null,"Activity Description","Activity Timeframe","Output Indicator","Assigned To"]
[]
[]
[]
[]
[]
[null,{"$f":"$J$3 & J82 & \": \" & INDEX(lkpSubStrategy_Text,MATCH($J$3&J82,lkpSubStrategy_ID,0))","v":"7C: Provide timely partner services to all pregnant women who are diagnosed with syphilis and all other women of reproductive age who are diagnosed with early syphilis"},null,null,null,null,"line\nline\nline",null,"SubStrategy letter","C",{"$f":"$J$3&J82","v":"7C"}]
[null,{"$f":"\"Objective \" & L84","v":"Objective 7C-1"}]
[null,"Annual Objective: Describe one objective for this strategy, using the S.M.A.R.T. objectives format",null,"Description: Briefly describe the baseline and target measures of your objective",null,null,null,null,"Objective",1,null,{"$f":"K82&\"-\"&J84","v":"7C-1"}]
[null,null,null,"Baseline","Target"]
[]
[]
[null,"Activity Description","Activity Timeframe","Output Indicator","Assigned To"]
[]
[]
[]
[]
[]
[null,"[+] Create objective"]
[null,"Applicants can submit up to three objectives for each sub-strategy; click again to hide if not needed"]
[null,{"$f":"\"Objective \" & L97","v":"Objective 7C-2"}]
[null,"Annual Objective: Describe one objective for this strategy, using the S.M.A.R.T. objectives format",null,"Description: Briefly describe the baseline and target measures of your objective",null,null,null,null,"Objective",2,null,{"$f":"K82&\"-\"&J97","v":"7C-2"}]
[null,null,null,"Baseline","Target"]
[]
[]
[null,"Activity Description","Activity Timeframe","Output Indicator","Assigned To"]
[]
[]
[]
[]
[]
[null,"[+] Create objective"]
[null,"Applicants can submit up to three objectives for each sub-strategy; click again to hide if not needed"]
[null,{"$f":"\"Objective \" & L110","v":"Objective 7C-3"}]
[null,"Annual Objective: Describe one objective for this strategy, using the S.M.A.R.T. objectives format",null,"Description: Briefly describe the baseline and target measures of your objective",null,null,null,null,"Objective",3,null,{"$f":"K82&\"-\"&J110","v":"7C-3"}]
[null,null,null,"Baseline","Target"]
[]
[]
[null,"Activity Description","Activity Timeframe","Output Indicator","Assigned To"]

{"sheet":"EPT","index":11,"n_rows":38,"n_cols":12,"rows_kept":38,"cut":false,"hidden":false,"merged":[[3,1,3,4],[5,1,5,4],[7,3,7,4],[20,3,20,4],[33,3,33,4]]}
[null,null,null,null,null,null,"Line Spacing",null,"config label","config val","Identifier(s)>>"]
[null,{"$f":"\"PCHD Year \" & PerformanceYear & \": Workplan\"","v":"PCHD Year 1: Workplan"},null,null,null,null,"20pt",null,"StrategyArea",{"$f":"INDEX(lkpStrategyAreas_ID,MATCH($J$3,lkpStrategy_ID,0))","v":2}]
[null,{"$f":"INDEX(lkpStrategyAreas_Text,MATCH($J$3,lkpStrategy_ID,0))","v":"Conduct Disease Investigation and Intervention"},null,null,null,null,null,null,"Strategy ID",8]
[null,{"$f":"\"Strategy \" & $J$3 & \": \" & INDEX(lkpStrategy_Text,MATCH($J$3,lkpStrategy_ID,0))","v":"Strategy 8: Promote Expedited Partner Therapy (EPT) (where permissible) to partners of chlamydia and/or gonorrhea cases"}]
[null,null,null,null,null,null,null,null,null,null,"SubStrategyID","ObjectiveID"]
[null,{"$f":"$J$3 & J6 & \": \" & INDEX(lkpSubStrategy_Text,MATCH($J$3&J6,lkpSubStrategy_ID,0))","v":"8A: Assess EPT practices to identify and prioritize providers, organizations, and areas to target for promotion and improvement. Provide technical assistance and education to promote EPT to providers and organizations who frequently report cases of chlamydia and/or gonorrhea, including cases of repeat infections"},null,null,null,null,"line\nline\nline",null,"SubStrategy letter","A",{"$f":"$J$3&J6","v":"8A"}]
[null,{"$f":"\"Objective \" & L8","v":"Objective 8A-1"}]
[null,"Annual Objective: Describe one objective for this strategy, using the S.M.A.R.T. objectives format",null,"Description: Briefly describe the baseline and target measures of your objective",null,null,null,null,"Objective",1,null,{"$f":"K6&\"-\"&J8","v":"8A-1"}]
[null,null,null,"Baseline","Target"]
[]
[]
[null,"Activity Description","Activity Timeframe","Output Indicator","Assigned To"]
[]
[]
[]
[]
[]
[null,"[+] Create objective"]
[null,"Applicants can submit up to three objectives for each sub-strategy; click again to hide if not needed"]
[null,{"$f":"\"Objective \" & L21","v":"Objective 8A-2"}]
[null,"Annual Objective: Describe one objective for this strategy, using the S.M.A.R.T. objectives format",null,"Description: Briefly describe the baseline and target measures of your objective",null,null,null,null,"Objective",2,null,{"$f":"K6&\"-\"&J21","v":"8A-2"}]
[null,null,null,"Baseline","Target"]
[]
[]
[null,"Activity Description","Activity Timeframe","Output Indicator","Assigned To"]
[]
[]
[]
[]
[]
[null,"[+] Create objective"]
[null,"Applicants can submit up to three objectives for each sub-strategy; click again to hide if not needed"]
[null,{"$f":"\"Objective \" & L34","v":"Objective 8A-3"}]
[null,"Annual Objective: Describe one objective for this strategy, using the S.M.A.R.T. objectives format",null,"Description: Briefly describe the baseline and target measures of your objective",null,null,null,null,"Objective",3,null,{"$f":"K6&\"-\"&J34","v":"8A-3"}]
[null,null,null,"Baseline","Target"]
[]
[]
[null,"Activity Description","Activity Timeframe","Output Indicator","Assigned To"]

{"sheet":"Partner Services for MSM","index":12,"n_rows":114,"n_cols":12,"rows_kept":114,"cut":false,"hidden":false,"merged":[[109,3,109,4],[45,3,45,4],[58,3,58,4],[71,3,71,4],[81,1,81,4],[83,3,83,4],[96,3,96,4],[43,1,43,4],[3,1,3,4],[5,1,5,4],[7,3,7,4],[20,3,20,4],[33,3,33,4]]}
[null,null,null,null,null,null,"Line Spacing",null,"config label","config val","Identifier(s)>>"]
[null,{"$f":"\"PCHD Year \" & PerformanceYear & \": Workplan\"","v":"PCHD Year 1: Workplan"},null,null,null,null,"20pt",null,"StrategyArea",{"$f":"INDEX(lkpStrategyAreas_ID,MATCH($J$3,lkpStrategy_ID,0))","v":2}]
[null,{"$f":"INDEX(lkpStrategyAreas_Text,MATCH($J$3,lkpStrategy_ID,0))","v":"Conduct Disease Investigation and Intervention"},null,null,null,null,null,null,"Strategy ID",9]
[null,{"$f":"\"Strategy \" & $J$3 & \": \" & INDEX(lkpStrategy_Text,MATCH($J$3,lkpStrategy_ID,0))","v":"Strategy 9: Conduct health department syphilis disease investigation and intervention for men with syphilis"}]
[null,null,null,null,null,null,null,null,null,null,"SubStrategyID","ObjectiveID"]
[null,{"$f":"$J$3 & J6 & \": \" & INDEX(lkpSubStrategy_Text,MATCH($J$3&J6,lkpSubStrategy_ID,0))","v":"9A: Conduct follow-up on primary and secondary syphilis cases among men, to obtain more information, if needed, on treatment, sex of sex partners, HIV serostatus, HIV care status, PrEP use, and other information to ensure linkage to appropriate STD and HIV related prevention services"},null,null,null,null,"line\nline\nline",null,"SubStrategy letter","A",{"$f":"$J$3&J6","v":"9A"}]
[null,{"$f":"\"Objective \" & L8","v":"Objective 9A-1"}]
[null,"Annual Objective: Describe one objective for this strategy, using the S.M.A.R.T. objectives format",null,"Description: Briefly describe the baseline and target measures of your objective",null,null,null,null,"Objective",1,null,{"$f":"K6&\"-\"&J8","v":"9A-1"}]
[null,null,null,"Baseline","Target"]
[]
[]
[null,"Activity Description","Activity Timeframe","Output Indicator","Assigned To"]
[]
[]
[]
[]
[]
[null,"[+] Create objective"]
[null,"Applicants can submit up to three objectives for each sub-strategy; click again to hide if not needed"]
[null,{"$f":"\"Objective \" & L21","v":"Objective 9A-2"}]
[null,"Annual Objective: Describe one objective for this strategy, using the S.M.A.R.T. objectives format",null,"Description: Briefly describe the baseline and target measures of your objective",null,null,null,null,"Objective",2,null,{"$f":"K6&\"-\"&J21","v":"9A-2"}]
[null,null,null,"Baseline","Target"]
[]
[]
[null,"Activity Description","Activity Timeframe","Output Indicator","Assigned To"]
[]
[]
[]
[]
[]
[null,"[+] Create objective"]
[null,"Applicants can submit up to three objectives for each sub-strategy; click again to hide if not needed"]
[null,{"$f":"\"Objective \" & L34","v":"Objective 9A-3"}]
[null,"Annual Objective: Describe one objective for this strategy, using the S.M.A.R.T. objectives format",null,"Description: Briefly describe the baseline and target measures of your objective",null,null,null,null,"Objective",3,null,{"$f":"K6&\"-\"&J34","v":"9A-3"}]
[null,null,null,"Baseline","Target"]
[]
[]
[null,"Activity Description","Activity Timeframe","Output Indicator","Assigned To"]
[]
[]
[]
[]
[]
[null,{"$f":"$J$3 & J44 & \": \" & INDEX(lkpSubStrategy_Text,MATCH($J$3&J44,lkpSubStrategy_ID,0))","v":"9B: Provide timely and comprehensive partner services to men with primary and secondary syphilis who report pregnant or other female partners of reproductive age"},null,null,null,null,"line\nline\nline",null,"SubStrategy letter","B",{"$f":"$J$3&J44","v":"9B"}]
[null,{"$f":"\"Objective \" & L46","v":"Objective 9B-1"}]
[null,"Annual Objective: Describe one objective for this strategy, using the S.M.A.R.T. objectives format",null,"Description: Briefly describe the baseline and target measures of your objective",null,null,null,null,"Objective",1,null,{"$f":"K44&\"-\"&J46","v":"9B-1"}]
[null,null,null,"Baseline","Target"]
[]
[]
[null,"Activity Description","Activity Timeframe","Output Indicator","Assigned To"]
[]
[]
[]
[]
[]
[null,"[+] Create objective"]
[null,"Applicants can submit up to three objectives for each sub-strategy; click again to hide if not needed"]
[null,{"$f":"\"Objective \" & L59","v":"Objective 9B-2"}]
[null,"Annual Objective: Describe one objective for this strategy, using the S.M.A.R.T. objectives format",null,"Description: Briefly describe the baseline and target measures of your objective",null,null,null,null,"Objective",2,null,{"$f":"K44&\"-\"&J59","v":"9B-2"}]
[null,null,null,"Baseline","Target"]
[]
[]
[null,"Activity Description","Activity Timeframe","Output Indicator","Assigned To"]
[]
[]
[]
[]
[]
[null,"[+] Create objective"]
[null,"Applicants can submit up to three objectives for each sub-strategy; click again to hide if not needed"]
[null,{"$f":"\"Objective \" & L72","v":"Objective 9B-3"}]
[null,"Annual Objective: Describe one objective for this strategy, using the S.M.A.R.T. objectives format",null,"Description: Briefly describe the baseline and target measures of your objective",null,null,null,null,"Objective",3,null,{"$f":"K44&\"-\"&J72","v":"9B-3"}]
[null,null,null,"Baseline","Target"]
[]
[]
[null,"Activity Description","Activity Timeframe","Output Indicator","Assigned To"]
[]
[]
[]
[]
[]
["\r\n\r\n\r\n",{"$f":"$J$3 & J82 & \": \" & INDEX(lkpSubStrategy_Text,MATCH($J$3&J82,lkpSubStrategy_ID,0))","v":"9C: Use program and epidemiologic data to identify subgroups of MSM with primary and secondary syphilis and factors associated with transmission to target for partner services to yield high numbers of all partners treated in a timely fashion and for whom consequence of transmission is the greatest. As resources permit, provide timely partner services including comprehensive STD and HIV testing and linkage to care and needed prevention services to those subgroups of MSM with primary and secondary syphilis"},null,null,null,null,"line\nline\nline",null,"SubStrategy letter","C",{"$f":"$J$3&J82","v":"9C"}]
[null,{"$f":"\"Objective \" & L84","v":"Objective 9C-1"}]
[null,"Annual Objective: Describe one objective for this strategy, using the S.M.A.R.T. objectives format",null,"Description: Briefly describe the baseline and target measures of your objective",null,null,null,null,"Objective",1,null,{"$f":"K82&\"-\"&J84","v":"9C-1"}]
[null,null,null,"Baseline","Target"]
[]
[]
[null,"Activity Description","Activity Timeframe","Output Indicator","Assigned To"]
[]
[]
[]
[]
[]
[null,"[+] Create objective"]
[null,"Applicants can submit up to three objectives for each sub-strategy; click again to hide if not needed"]
[null,{"$f":"\"Objective \" & L97","v":"Objective 9C-2"}]
[null,"Annual Objective: Describe one objective for this strategy, using the S.M.A.R.T. objectives format",null,"Description: Briefly describe the baseline and target measures of your objective",null,null,null,null,"Objective",2,null,{"$f":"K82&\"-\"&J97","v":"9C-2"}]
[null,null,null,"Baseline","Target"]
[]
[]
[null,"Activity Description","Activity Timeframe","Output Indicator","Assigned To"]
[]
[]
[]
[]
[]
[null,"[+] Create objective"]
[null,"Applicants can submit up to three objectives for each sub-strategy; click again to hide if not needed"]
[null,{"$f":"\"Objective \" & L110","v":"Objective 9C-3"}]
[null,"Annual Objective: Describe one objective for this strategy, using the S.M.A.R.T. objectives format",null,"Description: Briefly describe the baseline and target measures of your objective",null,null,null,null,"Objective",3,null,{"$f":"K82&\"-\"&J110","v":"9C-3"}]
[null,null,null,"Baseline","Target"]
[]
[]
[null,"Activity Description","Activity Timeframe","Output Indicator","Assigned To"]

{"sheet":"STD Specialty Care","index":13,"n_rows":76,"n_cols":12,"rows_kept":76,"cut":false,"hidden":false,"merged":[[45,3,45,4],[58,3,58,4],[71,3,71,4],[3,1,3,4],[5,1,5,4],[7,3,7,4],[20,3,20,4],[33,3,33,4],[43,1,43,4]]}
[null,null,null,null,null,null,"Line Spacing",null,"config label","config val","Identifier(s)>>"]
[null,{"$f":"\"PCHD Year \" & PerformanceYear & \": Workplan\"","v":"PCHD Year 1: Workplan"},null,null,null,null,"20pt",null,"StrategyArea",{"$f":"INDEX(lkpStrategyAreas_ID,MATCH($J$3,lkpStrategy_ID,0))","v":3}]
[null,{"$f":"INDEX(lkpStrategyAreas_Text,MATCH($J$3,lkpStrategy_ID,0))","v":"Promote CDC-Recommended Screening, Diagnosis, and Treatment"},null,null,null,null,null,null,"Strategy ID",10]
[null,{"$f":"\"Strategy \" & $J$3 & \": \" & INDEX(lkpStrategy_Text,MATCH($J$3,lkpStrategy_ID,0))","v":"Strategy 10: Promote quality STD specialty care services"}]
[null,null,null,null,null,null,null,null,null,null,"SubStrategyID","ObjectiveID"]
[null,{"$f":"$J$3 & J6 & \": \" & INDEX(lkpSubStrategy_Text,MATCH($J$3&J6,lkpSubStrategy_ID,0))","v":"10A: Identify all STD specialty clinics in the project area"},null,null,null,null,"line\nline\nline",null,"SubStrategy letter","A",{"$f":"$J$3&J6","v":"10A"}]
[null,{"$f":"\"Objective \" & L8","v":"Objective 10A-1"}]
[null,"Annual Objective: Describe one objective for this strategy, using the S.M.A.R.T. objectives format",null,"Description: Briefly describe the baseline and target measures of your objective",null,null,null,null,"Objective",1,null,{"$f":"K6&\"-\"&J8","v":"10A-1"}]
[null,null,null,"Baseline","Target"]
[]
[]
[null,"Activity Description","Activity Timeframe","Output Indicator","Assigned To"]
[]
[]
[]
[]
[]
[null,"[+] Create objective"]
[null,"Applicants can submit up to three objectives for each sub-strategy; click again to hide if not needed"]
[null,{"$f":"\"Objective \" & L21","v":"Objective 10A-2"}]
[null,"Annual Objective: Describe one objective for this strategy, using the S.M.A.R.T. objectives format",null,"Description: Briefly describe the baseline and target measures of your objective",null,null,null,null,"Objective",2,null,{"$f":"K6&\"-\"&J21","v":"10A-2"}]
[null,null,null,"Baseline","Target"]
[]
[]
[null,"Activity Description","Activity Timeframe","Output Indicator","Assigned To"]
[]
[]
[]
[]
[]
[null,"[+] Create objective"]
[null,"Applicants can submit up to three objectives for each sub-strategy; click again to hide if not needed"]
[null,{"$f":"\"Objective \" & L34","v":"Objective 10A-3"}]
[null,"Annual Objective: Describe one objective for this strategy, using the S.M.A.R.T. objectives format",null,"Description: Briefly describe the baseline and target measures of your objective",null,null,null,null,"Objective",3,null,{"$f":"K6&\"-\"&J34","v":"10A-3"}]
[null,null,null,"Baseline","Target"]
[]
[]
[null,"Activity Description","Activity Timeframe","Output Indicator","Assigned To"]
[]
[]
[]
[]
[]
[null,{"$f":"$J$3 & J44 & \": \" & INDEX(lkpSubStrategy_Text,MATCH($J$3&J44,lkpSubStrategy_ID,0))","v":"10B: Promote quality STD care in those settings based on clinical guidelines and recommendations and promote strategies for expanding access to care in those settings"},null,null,null,null,"line\nline\nline",null,"SubStrategy letter","B",{"$f":"$J$3&J44","v":"10B"}]
[null,{"$f":"\"Objective \" & L46","v":"Objective 10B-1"}]
[null,"Annual Objective: Describe one objective for this strategy, using the S.M.A.R.T. objectives format",null,"Description: Briefly describe the baseline and target measures of your objective",null,null,null,null,"Objective",1,null,{"$f":"K44&\"-\"&J46","v":"10B-1"}]
[null,null,null,"Baseline","Target"]
[]
[]
[null,"Activity Description","Activity Timeframe","Output Indicator","Assigned To"]
[]
[]
[]
[]
[]
[null,"[+] Create objective"]
[null,"Applicants can submit up to three objectives for each sub-strategy; click again to hide if not needed"]
[null,{"$f":"\"Objective \" & L59","v":"Objective 10B-2"}]
[null,"Annual Objective: Describe one objective for this strategy, using the S.M.A.R.T. objectives format",null,"Description: Briefly describe the baseline and target measures of your objective",null,null,null,null,"Objective",2,null,{"$f":"K44&\"-\"&J59","v":"10B-2"}]
[null,null,null,"Baseline","Target"]
[]
[]
[null,"Activity Description","Activity Timeframe","Output Indicator","Assigned To"]
[]
[]
[]
[]
[]
[null,"[+] Create objective"]
[null,"Applicants can submit up to three objectives for each sub-strategy; click again to hide if not needed"]
[null,{"$f":"\"Objective \" & L72","v":"Objective 10B-3"}]
[null,"Annual Objective: Describe one objective for this strategy, using the S.M.A.R.T. objectives format",null,"Description: Briefly describe the baseline and target measures of your objective",null,null,null,null,"Objective",3,null,{"$f":"K44&\"-\"&J72","v":"10B-3"}]
[null,null,null,"Baseline","Target"]
[]
[]
[null,"Activity Description","Activity Timeframe","Output Indicator","Assigned To"]

{"sheet":"Gonorrhea & Syphilis Tx","index":14,"n_rows":114,"n_cols":12,"rows_kept":114,"cut":false,"hidden":false,"merged":[[109,3,109,4],[45,3,45,4],[58,3,58,4],[71,3,71,4],[81,1,81,4],[83,3,83,4],[96,3,96,4],[43,1,43,4],[3,1,3,4],[5,1,5,4],[7,3,7,4],[20,3,20,4],[33,3,33,4]]}
[null,null,null,null,null,null,"Line Spacing",null,"config label","config val","Identifier(s)>>"]
[null,{"$f":"\"PCHD Year \" & PerformanceYear & \": Workplan\"","v":"PCHD Year 1: Workplan"},null,null,null,null,"20pt",null,"StrategyArea",{"$f":"INDEX(lkpStrategyAreas_ID,MATCH($J$3,lkpStrategy_ID,0))","v":3}]
[null,{"$f":"INDEX(lkpStrategyAreas_Text,MATCH($J$3,lkpStrategy_ID,0))","v":"Promote CDC-Recommended Screening, Diagnosis, and Treatment"},null,null,null,null,null,null,"Strategy ID",11]
[null,{"$f":"\"Strategy \" & $J$3 & \": \" & INDEX(lkpStrategy_Text,MATCH($J$3,lkpStrategy_ID,0))","v":"Strategy 11: Promote CDC-recommended treatment for gonorrhea and syphilis"}]
[null,null,null,null,null,null,null,null,null,null,"SubStrategyID","ObjectiveID"]
[null,{"$f":"$J$3 & J6 & \": \" & INDEX(lkpSubStrategy_Text,MATCH($J$3&J6,lkpSubStrategy_ID,0))","v":"11A: Assess GC treatment practices to identify and prioritize providers, organizations, and areas to target for promotion and improvement. Provide education and technical assistance to providers and organizations who prescribe non-recommended treatment for gonorrhea"},null,null,null,null,"line\nline\nline",null,"SubStrategy letter","A",{"$f":"$J$3&J6","v":"11A"}]
[null,{"$f":"\"Objective \" & L8","v":"Objective 11A-1"}]
[null,"Annual Objective: Describe one objective for this strategy, using the S.M.A.R.T. objectives format",null,"Description: Briefly describe the baseline and target measures of your objective",null,null,null,null,"Objective",1,null,{"$f":"K6&\"-\"&J8","v":"11A-1"}]
[null,null,null,"Baseline","Target"]
[]
[]
[null,"Activity Description","Activity Timeframe","Output Indicator","Assigned To"]
[]
[]
[]
[]
[]
[null,"[+] Create objective"]
[null,"Applicants can submit up to three objectives for each sub-strategy; click again to hide if not needed"]
[null,{"$f":"\"Objective \" & L21","v":"Objective 11A-2"}]
[null,"Annual Objective: Describe one objective for this strategy, using the S.M.A.R.T. objectives format",null,"Description: Briefly describe the baseline and target measures of your objective",null,null,null,null,"Objective",2,null,{"$f":"K6&\"-\"&J21","v":"11A-2"}]
[null,null,null,"Baseline","Target"]
[]
[]
[null,"Activity Description","Activity Timeframe","Output Indicator","Assigned To"]
[]
[]
[]
[]
[]
[null,"[+] Create objective"]
[null,"Applicants can submit up to three objectives for each sub-strategy; click again to hide if not needed"]
[null,{"$f":"\"Objective \" & L34","v":"Objective 11A-3"}]
[null,"Annual Objective: Describe one objective for this strategy, using the S.M.A.R.T. objectives format",null,"Description: Briefly describe the baseline and target measures of your objective",null,null,null,null,"Objective",3,null,{"$f":"K6&\"-\"&J34","v":"11A-3"}]
[null,null,null,"Baseline","Target"]
[]
[]
[null,"Activity Description","Activity Timeframe","Output Indicator","Assigned To"]
[]
[]
[]
[]
[]
[null,{"$f":"$J$3 & J44 & \": \" & INDEX(lkpSubStrategy_Text,MATCH($J$3&J44,lkpSubStrategy_ID,0))","v":"11B: Assess syphilis treatment practices to identify and prioritize providers, organizations, and areas to target for promotion and improvement. Provide education and technical assistance to providers and organizations who prescribe non-recommended treatment for syphilis"},null,null,null,null,"line\nline\nline",null,"SubStrategy letter","B",{"$f":"$J$3&J44","v":"11B"}]
[null,{"$f":"\"Objective \" & L46","v":"Objective 11B-1"}]
[null,"Annual Objective: Describe one objective for this strategy, using the S.M.A.R.T. objectives format",null,"Description: Briefly describe the baseline and target measures of your objective",null,null,null,null,"Objective",1,null,{"$f":"K44&\"-\"&J46","v":"11B-1"}]
[null,null,null,"Baseline","Target"]
[]
[]
[null,"Activity Description","Activity Timeframe","Output Indicator","Assigned To"]
[]
[]
[]
[]
[]
[null,"[+] Create objective"]
[null,"Applicants can submit up to three objectives for each sub-strategy; click again to hide if not needed"]
[null,{"$f":"\"Objective \" & L59","v":"Objective 11B-2"}]
[null,"Annual Objective: Describe one objective for this strategy, using the S.M.A.R.T. objectives format",null,"Description: Briefly describe the baseline and target measures of your objective",null,null,null,null,"Objective",2,null,{"$f":"K44&\"-\"&J59","v":"11B-2"}]
[null,null,null,"Baseline","Target"]
[]
[]
[null,"Activity Description","Activity Timeframe","Output Indicator","Assigned To"]
[]
[]
[]
[]
[]
[null,"[+] Create objective"]
[null,"Applicants can submit up to three objectives for each sub-strategy; click again to hide if not needed"]
[null,{"$f":"\"Objective \" & L72","v":"Objective 11B-3"}]
[null,"Annual Objective: Describe one objective for this strategy, using the S.M.A.R.T. objectives format",null,"Description: Briefly describe the baseline and target measures of your objective",null,null,null,null,"Objective",3,null,{"$f":"K44&\"-\"&J72","v":"11B-3"}]
[null,null,null,"Baseline","Target"]
[]
[]
[null,"Activity Description","Activity Timeframe","Output Indicator","Assigned To"]
[]
[]
[]
[]
[]
[null,{"$f":"$J$3 & J82 & \": \" & INDEX(lkpSubStrategy_Text,MATCH($J$3&J82,lkpSubStrategy_ID,0))","v":"11C: Implement a Benzathine penicillin G forecasting inventory management system to monitor supply, and have a plan to address shortages in the applicant's project area. Assist providers and organizations who are unable to provide timely, recommended treatment for syphilis in getting access to medication or dispensing the treatment to the patient, as needed"},null,null,null,null,"line\nline\nline",null,"SubStrategy letter","C",{"$f":"$J$3&J82","v":"11C"}]
[null,{"$f":"\"Objective \" & L84","v":"Objective 11C-1"}]
[null,"Annual Objective: Describe one objective for this strategy, using the S.M.A.R.T. objectives format",null,"Description: Briefly describe the baseline and target measures of your objective",null,null,null,null,"Objective",1,null,{"$f":"K82&\"-\"&J84","v":"11C-1"}]
[null,null,null,"Baseline","Target"]
[]
[]
[null,"Activity Description","Activity Timeframe","Output Indicator","Assigned To"]
[]
[]
[]
[]
[]
[null,"[+] Create objective"]
[null,"Applicants can submit up to three objectives for each sub-strategy; click again to hide if not needed"]
[null,{"$f":"\"Objective \" & L97","v":"Objective 11C-2"}]
[null,"Annual Objective: Describe one objective for this strategy, using the S.M.A.R.T. objectives format",null,"Description: Briefly describe the baseline and target measures of your objective",null,null,null,null,"Objective",2,null,{"$f":"K82&\"-\"&J97","v":"11C-2"}]
[null,null,null,"Baseline","Target"]
[]
[]
[null,"Activity Description","Activity Timeframe","Output Indicator","Assigned To"]
[]
[]
[]
[]
[]
[null,"[+] Create objective"]
[null,"Applicants can submit up to three objectives for each sub-strategy; click again to hide if not needed"]
[null,{"$f":"\"Objective \" & L110","v":"Objective 11C-3"}]
[null,"Annual Objective: Describe one objective for this strategy, using the S.M.A.R.T. objectives format",null,"Description: Briefly describe the baseline and target measures of your objective",null,null,null,null,"Objective",3,null,{"$f":"K82&\"-\"&J110","v":"11C-3"}]
[null,null,null,"Baseline","Target"]
[]
[]
[null,"Activity Description","Activity Timeframe","Output Indicator","Assigned To"]

{"sheet":"Priority Pop. Screening & Tx","index":15,"n_rows":114,"n_cols":12,"rows_kept":114,"cut":false,"hidden":false,"merged":[[109,3,109,4],[45,3,45,4],[58,3,58,4],[71,3,71,4],[81,1,81,4],[83,3,83,4],[96,3,96,4],[43,1,43,4],[3,1,3,4],[5,1,5,4],[7,3,7,4],[20,3,20,4],[33,3,33,4]]}
[null,null,null,null,null,null,"Line Spacing",null,"config label","config val","Identifier(s)>>"]
[null,{"$f":"\"PCHD Year \" & PerformanceYear & \": Workplan\"","v":"PCHD Year 1: Workplan"},null,null,null,null,"20pt",null,"StrategyArea",{"$f":"INDEX(lkpStrategyAreas_ID,MATCH($J$3,lkpStrategy_ID,0))","v":3}]
[null,{"$f":"INDEX(lkpStrategyAreas_Text,MATCH($J$3,lkpStrategy_ID,0))","v":"Promote CDC-Recommended Screening, Diagnosis, and Treatment"},null,null,null,null,null,null,"Strategy ID",12]
[null,{"$f":"\"Strategy \" & $J$3 & \": \" & INDEX(lkpStrategy_Text,MATCH($J$3,lkpStrategy_ID,0))","v":"Strategy 12: Promote CDC-recommended screening for, and treatment of, STDs among priority populations"}]
[null,null,null,null,null,null,null,null,null,null,"SubStrategyID","ObjectiveID"]
[null,{"$f":"$J$3 & J6 & \": \" & INDEX(lkpSubStrategy_Text,MATCH($J$3&J6,lkpSubStrategy_ID,0))","v":"12A: For pregnant women: Assess screening and treatment practices to identify and prioritize providers, organizations, and areas to target for promotion and improvement. Provide education and technical assistance, for prenatal-care providers and organizations who do not regularly screen for syphilis as recommended"},null,null,null,null,"line\nline\nline",null,"SubStrategy letter","A",{"$f":"$J$3&J6","v":"12A"}]
[null,{"$f":"\"Objective \" & L8","v":"Objective 12A-1"}]
[null,"Annual Objective: Describe one objective for this strategy, using the S.M.A.R.T. objectives format",null,"Description: Briefly describe the baseline and target measures of your objective",null,null,null,null,"Objective",1,null,{"$f":"K6&\"-\"&J8","v":"12A-1"}]
[null,null,null,"Baseline","Target"]
[]
[]
[null,"Activity Description","Activity Timeframe","Output Indicator","Assigned To"]
[]
[]
[]
[]
[]
[null,"[+] Create objective"]
[null,"Applicants can submit up to three objectives for each sub-strategy; click again to hide if not needed"]
[null,{"$f":"\"Objective \" & L21","v":"Objective 12A-2"}]
[null,"Annual Objective: Describe one objective for this strategy, using the S.M.A.R.T. objectives format",null,"Description: Briefly describe the baseline and target measures of your objective",null,null,null,null,"Objective",2,null,{"$f":"K6&\"-\"&J21","v":"12A-2"}]
[null,null,null,"Baseline","Target"]
[]
[]
[null,"Activity Description","Activity Timeframe","Output Indicator","Assigned To"]
[]
[]
[]
[]
[]
[null,"[+] Create objective"]
[null,"Applicants can submit up to three objectives for each sub-strategy; click again to hide if not needed"]
[null,{"$f":"\"Objective \" & L34","v":"Objective 12A-3"}]
[null,"Annual Objective: Describe one objective for this strategy, using the S.M.A.R.T. objectives format",null,"Description: Briefly describe the baseline and target measures of your objective",null,null,null,null,"Objective",3,null,{"$f":"K6&\"-\"&J34","v":"12A-3"}]
[null,null,null,"Baseline","Target"]
[]
[]
[null,"Activity Description","Activity Timeframe","Output Indicator","Assigned To"]
[]
[]
[]
[]
[]
[null,{"$f":"$J$3 & J44 & \": \" & INDEX(lkpSubStrategy_Text,MATCH($J$3&J44,lkpSubStrategy_ID,0))","v":"12B: For young adults and adolescents, particularly those seen in family planning clinics, adolescent health clinics, and primary care settings: Assess screening and treatment practices to identify and prioritize providers, organizations, and areas to target for promotion and improvement. Provide education and technical assistance to targeted providers and organizations to promote recommended screening and treatment"},null,null,null,null,"line\nline\nline",null,"SubStrategy letter","B",{"$f":"$J$3&J44","v":"12B"}]
[null,{"$f":"\"Objective \" & L46","v":"Objective 12B-1"}]
[null,"Annual Objective: Describe one objective for this strategy, using the S.M.A.R.T. objectives format",null,"Description: Briefly describe the baseline and target measures of your objective",null,null,null,null,"Objective",1,null,{"$f":"K44&\"-\"&J46","v":"12B-1"}]
[null,null,null,"Baseline","Target"]
[]
[]
[null,"Activity Description","Activity Timeframe","Output Indicator","Assigned To"]
[]
[]
[]
[]
[]
[null,"[+] Create objective"]
[null,"Applicants can submit up to three objectives for each sub-strategy; click again to hide if not needed"]
[null,{"$f":"\"Objective \" & L59","v":"Objective 12B-2"}]
[null,"Annual Objective: Describe one objective for this strategy, using the S.M.A.R.T. objectives format",null,"Description: Briefly describe the baseline and target measures of your objective",null,null,null,null,"Objective",2,null,{"$f":"K44&\"-\"&J59","v":"12B-2"}]
[null,null,null,"Baseline","Target"]
[]
[]
[null,"Activity Description","Activity Timeframe","Output Indicator","Assigned To"]
[]
[]
[]
[]
[]
[null,"[+] Create objective"]
[null,"Applicants can submit up to three objectives for each sub-strategy; click again to hide if not needed"]
[null,{"$f":"\"Objective \" & L72","v":"Objective 12B-3"}]
[null,"Annual Objective: Describe one objective for this strategy, using the S.M.A.R.T. objectives format",null,"Description: Briefly describe the baseline and target measures of your objective",null,null,null,null,"Objective",3,null,{"$f":"K44&\"-\"&J72","v":"12B-3"}]
[null,null,null,"Baseline","Target"]
[]
[]
[null,"Activity Description","Activity Timeframe","Output Indicator","Assigned To"]
[]
[]
[]
[]
[]
["\r\n\r\n\r\n",{"$f":"$J$3 & J82 & \": \" & INDEX(lkpSubStrategy_Text,MATCH($J$3&J82,lkpSubStrategy_ID,0))","v":"12C: For MSM, particularly those seen in lesbian, gay, bisexual, transgender and queer/questionning (LGBTQ) health centers, HRSA-funded HIV care settings, primary care settings, and clinics providing HIV PrEP: Assess screening and treatment practices to identify and prioritize providers, organizations, and areas to target for promotion and improvement. Provide education and technical assistance to targeted providers and organizations, to promote recommended screening and treatment"},null,null,null,null,"line\nline\nline",null,"SubStrategy letter","C",{"$f":"$J$3&J82","v":"12C"}]
[null,{"$f":"\"Objective \" & L84","v":"Objective 12C-1"}]
[null,"Annual Objective: Describe one objective for this strategy, using the S.M.A.R.T. objectives format",null,"Description: Briefly describe the baseline and target measures of your objective",null,null,null,null,"Objective",1,null,{"$f":"K82&\"-\"&J84","v":"12C-1"}]
[null,null,null,"Baseline","Target"]
[]
[]
[null,"Activity Description","Activity Timeframe","Output Indicator","Assigned To"]
[]
[]
[]
[]
[]
[null,"[+] Create objective"]
[null,"Applicants can submit up to three objectives for each sub-strategy; click again to hide if not needed"]
[null,{"$f":"\"Objective \" & L97","v":"Objective 12C-2"}]
[null,"Annual Objective: Describe one objective for this strategy, using the S.M.A.R.T. objectives format",null,"Description: Briefly describe the baseline and target measures of your objective",null,null,null,null,"Objective",2,null,{"$f":"K82&\"-\"&J97","v":"12C-2"}]
[null,null,null,"Baseline","Target"]
[]
[]
[null,"Activity Description","Activity Timeframe","Output Indicator","Assigned To"]
[]
[]
[]
[]
[]
[null,"[+] Create objective"]
[null,"Applicants can submit up to three objectives for each sub-strategy; click again to hide if not needed"]
[null,{"$f":"\"Objective \" & L110","v":"Objective 12C-3"}]
[null,"Annual Objective: Describe one objective for this strategy, using the S.M.A.R.T. objectives format",null,"Description: Briefly describe the baseline and target measures of your objective",null,null,null,null,"Objective",3,null,{"$f":"K82&\"-\"&J110","v":"12C-3"}]
[null,null,null,"Baseline","Target"]
[]
[]
[null,"Activity Description","Activity Timeframe","Output Indicator","Assigned To"]

{"sheet":"Community Health Promotion","index":16,"n_rows":38,"n_cols":12,"rows_kept":38,"cut":false,"hidden":false,"merged":[[3,1,3,4],[5,1,5,4],[7,3,7,4],[20,3,20,4],[33,3,33,4]]}
[null,null,null,null,null,null,"Line Spacing",null,"config label","config val","Identifier(s)>>"]
[null,{"$f":"\"PCHD Year \" & PerformanceYear & \": Workplan\"","v":"PCHD Year 1: Workplan"},null,null,null,null,"20pt",null,"StrategyArea",{"$f":"INDEX(lkpStrategyAreas_ID,MATCH($J$3,lkpStrategy_ID,0))","v":4}]
[null,{"$f":"INDEX(lkpStrategyAreas_Text,MATCH($J$3,lkpStrategy_ID,0))","v":"Promote STD Prevention and Policy"},null,null,null,null,null,null,"Strategy ID",13]
[null,{"$f":"\"Strategy \" & $J$3 & \": \" & INDEX(lkpStrategy_Text,MATCH($J$3,lkpStrategy_ID,0))","v":"Strategy 13: Promote STD prevention to the public"}]
[null,null,null,null,null,null,null,null,null,null,"SubStrategyID","ObjectiveID"]
[null,{"$f":"$J$3 & J6 & \": \" & INDEX(lkpSubStrategy_Text,MATCH($J$3&J6,lkpSubStrategy_ID,0))","v":"13A: Provide audience-appropriate, 508-compliant, STD-prevention information online, including answers to common STD questions (e.g., symptoms, testing methods, treatment) and places where testing and treatment are available"},null,null,null,null,"line\nline\nline",null,"SubStrategy letter","A",{"$f":"$J$3&J6","v":"13A"}]
[null,{"$f":"\"Objective \" & L8","v":"Objective 13A-1"}]
[null,"Annual Objective: Describe one objective for this strategy, using the S.M.A.R.T. objectives format",null,"Description: Briefly describe the baseline and target measures of your objective",null,null,null,null,"Objective",1,null,{"$f":"K6&\"-\"&J8","v":"13A-1"}]
[null,null,null,"Baseline","Target"]
[]
[]
[null,"Activity Description","Activity Timeframe","Output Indicator","Assigned To"]
[]
[]
[]
[]
[]
[null,"[+] Create objective"]
[null,"Applicants can submit up to three objectives for each sub-strategy; click again to hide if not needed"]
[null,{"$f":"\"Objective \" & L21","v":"Objective 13A-2"}]
[null,"Annual Objective: Describe one objective for this strategy, using the S.M.A.R.T. objectives format",null,"Description: Briefly describe the baseline and target measures of your objective",null,null,null,null,"Objective",2,null,{"$f":"K6&\"-\"&J21","v":"13A-2"}]
[null,null,null,"Baseline","Target"]
[]
[]
[null,"Activity Description","Activity Timeframe","Output Indicator","Assigned To"]
[]
[]
[]
[]
[]
[null,"[+] Create objective"]
[null,"Applicants can submit up to three objectives for each sub-strategy; click again to hide if not needed"]
[null,{"$f":"\"Objective \" & L34","v":"Objective 13A-3"}]
[null,"Annual Objective: Describe one objective for this strategy, using the S.M.A.R.T. objectives format",null,"Description: Briefly describe the baseline and target measures of your objective",null,null,null,null,"Objective",3,null,{"$f":"K6&\"-\"&J34","v":"13A-3"}]
[null,null,null,"Baseline","Target"]
[]
[]
[null,"Activity Description","Activity Timeframe","Output Indicator","Assigned To"]

{"sheet":"Provider Education & Reporting","index":17,"n_rows":38,"n_cols":12,"rows_kept":38,"cut":false,"hidden":false,"merged":[[3,1,3,4],[5,1,5,4],[7,3,7,4],[20,3,20,4],[33,3,33,4]]}
[null,null,null,null,null,null,"Line Spacing",null,"config label","config val","Identifier(s)>>"]
[null,{"$f":"\"PCHD Year \" & PerformanceYear & \": Workplan\"","v":"PCHD Year 1: Workplan"},null,null,null,null,"20pt",null,"StrategyArea",{"$f":"INDEX(lkpStrategyAreas_ID,MATCH($J$3,lkpStrategy_ID,0))","v":4}]
[null,{"$f":"INDEX(lkpStrategyAreas_Text,MATCH($J$3,lkpStrategy_ID,0))","v":"Promote STD Prevention and Policy"},null,null,null,null,null,null,"Strategy ID",14]
[null,{"$f":"\"Strategy \" & $J$3 & \": \" & INDEX(lkpStrategy_Text,MATCH($J$3,lkpStrategy_ID,0))","v":"Strategy 14: Promote STD prevention and reporting to provider community"}]
[null,null,null,null,null,null,null,null,null,null,"SubStrategyID","ObjectiveID"]
[null,{"$f":"$J$3 & J6 & \": \" & INDEX(lkpSubStrategy_Text,MATCH($J$3&J6,lkpSubStrategy_ID,0))","v":"14A: Notify local providers and organizations about important or timely STD-related issues, such as outbreaks, emerging diseases, recommended treatment changes, biomedical advances, and reporting requirements"},null,null,null,null,"line\nline\nline",null,"SubStrategy letter","A",{"$f":"$J$3&J6","v":"14A"}]
[null,{"$f":"\"Objective \" & L8","v":"Objective 14A-1"}]
[null,"Annual Objective: Describe one objective for this strategy, using the S.M.A.R.T. objectives format",null,"Description: Briefly describe the baseline and target measures of your objective",null,null,null,null,"Objective",1,null,{"$f":"K6&\"-\"&J8","v":"14A-1"}]
[null,null,null,"Baseline","Target"]
[]
[]
[null,"Activity Description","Activity Timeframe","Output Indicator","Assigned To"]
[]
[]
[]
[]
[]
[null,"[+] Create objective"]
[null,"Applicants can submit up to three objectives for each sub-strategy; click again to hide if not needed"]
[null,{"$f":"\"Objective \" & L21","v":"Objective 14A-2"}]
[null,"Annual Objective: Describe one objective for this strategy, using the S.M.A.R.T. objectives format",null,"Description: Briefly describe the baseline and target measures of your objective",null,null,null,null,"Objective",2,null,{"$f":"K6&\"-\"&J21","v":"14A-2"}]
[null,null,null,"Baseline","Target"]
[]
[]
[null,"Activity Description","Activity Timeframe","Output Indicator","Assigned To"]
[]
[]
[]
[]
[]
[null,"[+] Create objective"]
[null,"Applicants can submit up to three objectives for each sub-strategy; click again to hide if not needed"]
[null,{"$f":"\"Objective \" & L34","v":"Objective 14A-3"}]
[null,"Annual Objective: Describe one objective for this strategy, using the S.M.A.R.T. objectives format",null,"Description: Briefly describe the baseline and target measures of your objective",null,null,null,null,"Objective",3,null,{"$f":"K6&\"-\"&J34","v":"14A-3"}]
[null,null,null,"Baseline","Target"]
[]
[]
[null,"Activity Description","Activity Timeframe","Output Indicator","Assigned To"]

{"sheet":"Policy","index":18,"n_rows":76,"n_cols":12,"rows_kept":76,"cut":false,"hidden":false,"merged":[[45,3,45,4],[58,3,58,4],[71,3,71,4],[3,1,3,4],[5,1,5,4],[7,3,7,4],[20,3,20,4],[33,3,33,4],[43,1,43,4]]}
[null,null,null,null,null,null,"Line Spacing",null,"config label","config val","Identifier(s)>>"]
[null,{"$f":"\"PCHD Year \" & PerformanceYear & \": Workplan\"","v":"PCHD Year 1: Workplan"},null,null,null,null,"20pt",null,"StrategyArea",{"$f":"INDEX(lkpStrategyAreas_ID,MATCH($J$3,lkpStrategy_ID,0))","v":4}]
[null,{"$f":"INDEX(lkpStrategyAreas_Text,MATCH($J$3,lkpStrategy_ID,0))","v":"Promote STD Prevention and Policy"},null,null,null,null,null,null,"Strategy ID",15]
[null,{"$f":"\"Strategy \" & $J$3 & \": \" & INDEX(lkpStrategy_Text,MATCH($J$3,lkpStrategy_ID,0))","v":"Strategy 15: Monitor STD-related policies and policy development"}]
[null,null,null,null,null,null,null,null,null,null,"SubStrategyID","ObjectiveID"]
[null,{"$f":"$J$3 & J6 & \": \" & INDEX(lkpSubStrategy_Text,MATCH($J$3&J6,lkpSubStrategy_ID,0))","v":"15A: Work with the CDC, the NNECS recipient, and other partners to identify STD-related policies of interest. Monitor proposed and actual changes in policies that may affect STD prevention programs"},null,null,null,null,"line\nline\nline",null,"SubStrategy letter","A",{"$f":"$J$3&J6","v":"15A"}]
[null,{"$f":"\"Objective \" & L8","v":"Objective 15A-1"}]
[null,"Annual Objective: Describe one objective for this strategy, using the S.M.A.R.T. objectives format",null,"Description: Briefly describe the baseline and target measures of your objective",null,null,null,null,"Objective",1,null,{"$f":"K6&\"-\"&J8","v":"15A-1"}]
[null,null,null,"Baseline","Target"]
[]
[]
[null,"Activity Description","Activity Timeframe","Output Indicator","Assigned To"]
[]
[]
[]
[]
[]
[null,"[+] Create objective"]
[null,"Applicants can submit up to three objectives for each sub-strategy; click again to hide if not needed"]
[null,{"$f":"\"Objective \" & L21","v":"Objective 15A-2"}]
[null,"Annual Objective: Describe one objective for this strategy, using the S.M.A.R.T. objectives format",null,"Description: Briefly describe the baseline and target measures of your objective",null,null,null,null,"Objective",2,null,{"$f":"K6&\"-\"&J21","v":"15A-2"}]
[null,null,null,"Baseline","Target"]
[]
[]
[null,"Activity Description","Activity Timeframe","Output Indicator","Assigned To"]
[]
[]
[]
[]
[]
[null,"[+] Create objective"]
[null,"Applicants can submit up to three objectives for each sub-strategy; click again to hide if not needed"]
[null,{"$f":"\"Objective \" & L34","v":"Objective 15A-3"}]
[null,"Annual Objective: Describe one objective for this strategy, using the S.M.A.R.T. objectives format",null,"Description: Briefly describe the baseline and target measures of your objective",null,null,null,null,"Objective",3,null,{"$f":"K6&\"-\"&J34","v":"15A-3"}]
[null,null,null,"Baseline","Target"]
[]
[]
[null,"Activity Description","Activity Timeframe","Output Indicator","Assigned To"]
[]
[]
[]
[]
[]
[null,{"$f":"$J$3 & J44 & \": \" & INDEX(lkpSubStrategy_Text,MATCH($J$3&J44,lkpSubStrategy_ID,0))","v":"15B: Work with local policy liaisons and with partner organizations on the development of policies that enhance the work of the STD prevention program"},null,null,null,null,"line\nline\nline",null,"SubStrategy letter","B",{"$f":"$J$3&J44","v":"15B"}]
[null,{"$f":"\"Objective \" & L46","v":"Objective 15B-1"}]
[null,"Annual Objective: Describe one objective for this strategy, using the S.M.A.R.T. objectives format",null,"Description: Briefly describe the baseline and target measures of your objective",null,null,null,null,"Objective",1,null,{"$f":"K44&\"-\"&J46","v":"15B-1"}]
[null,null,null,"Baseline","Target"]
[]
[]
[null,"Activity Description","Activity Timeframe","Output Indicator","Assigned To"]
[]
[]
[]
[]
[]
[null,"[+] Create objective"]
[null,"Applicants can submit up to three objectives for each sub-strategy; click again to hide if not needed"]
[null,{"$f":"\"Objective \" & L59","v":"Objective 15B-2"}]
[null,"Annual Objective: Describe one objective for this strategy, using the S.M.A.R.T. objectives format",null,"Description: Briefly describe the baseline and target measures of your objective",null,null,null,null,"Objective",2,null,{"$f":"K44&\"-\"&J59","v":"15B-2"}]
[null,null,null,"Baseline","Target"]
[]
[]
[null,"Activity Description","Activity Timeframe","Output Indicator","Assigned To"]
[]
[]
[]
[]
[]
[null,"[+] Create objective"]
[null,"Applicants can submit up to three objectives for each sub-strategy; click again to hide if not needed"]
[null,{"$f":"\"Objective \" & L72","v":"Objective 15B-3"}]
[null,"Annual Objective: Describe one objective for this strategy, using the S.M.A.R.T. objectives format",null,"Description: Briefly describe the baseline and target measures of your objective",null,null,null,null,"Objective",3,null,{"$f":"K44&\"-\"&J72","v":"15B-3"}]
[null,null,null,"Baseline","Target"]
[]
[]
[null,"Activity Description","Activity Timeframe","Output Indicator","Assigned To"]

{"sheet":"Analysis, Translation, Dissemin","index":19,"n_rows":114,"n_cols":12,"rows_kept":114,"cut":false,"hidden":false,"merged":[[109,3,109,4],[45,3,45,4],[58,3,58,4],[71,3,71,4],[81,1,81,4],[83,3,83,4],[96,3,96,4],[43,1,43,4],[3,1,3,4],[5,1,5,4],[7,3,7,4],[20,3,20,4],[33,3,33,4]]}
[null,null,null,null,null,null,"Line Spacing",null,"config label","config val","Identifier(s)>>"]
[null,{"$f":"\"PCHD Year \" & PerformanceYear & \": Workplan\"","v":"PCHD Year 1: Workplan"},null,null,null,null,"20pt",null,"StrategyArea",{"$f":"INDEX(lkpStrategyAreas_ID,MATCH($J$3,lkpStrategy_ID,0))","v":5}]
[null,{"$f":"INDEX(lkpStrategyAreas_Text,MATCH($J$3,lkpStrategy_ID,0))","v":"Analyze and Use Data for Program Improvement"},null,null,null,null,null,null,"Strategy ID",16]
[null,{"$f":"\"Strategy \" & $J$3 & \": \" & INDEX(lkpStrategy_Text,MATCH($J$3,lkpStrategy_ID,0))","v":"Strategy 16: Conduct epidemiologic analysis, translation and dissemination"}]
[null,null,null,null,null,null,null,null,null,null,"SubStrategyID","ObjectiveID"]
[null,{"$f":"$J$3 & J6 & \": \" & INDEX(lkpSubStrategy_Text,MATCH($J$3&J6,lkpSubStrategy_ID,0))","v":"16A: Conduct regular analyses of trends in, geographic distribution of, and factors associated with reported cases using core epidemiologic variables"},null,null,null,null,"line\nline\nline",null,"SubStrategy letter","A",{"$f":"$J$3&J6","v":"16A"}]
[null,{"$f":"\"Objective \" & L8","v":"Objective 16A-1"}]
[null,"Annual Objective: Describe one objective for this strategy, using the S.M.A.R.T. objectives format",null,"Description: Briefly describe the baseline and target measures of your objective",null,null,null,null,"Objective",1,null,{"$f":"K6&\"-\"&J8","v":"16A-1"}]
[null,null,null,"Baseline","Target"]
[]
[]
[null,"Activity Description","Activity Timeframe","Output Indicator","Assigned To"]
[]
[]
[]
[]
[]
[null,"[+] Create objective"]
[null,"Applicants can submit up to three objectives for each sub-strategy; click again to hide if not needed"]
[null,{"$f":"\"Objective \" & L21","v":"Objective 16A-2"}]
[null,"Annual Objective: Describe one objective for this strategy, using the S.M.A.R.T. objectives format",null,"Description: Briefly describe the baseline and target measures of your objective",null,null,null,null,"Objective",2,null,{"$f":"K6&\"-\"&J21","v":"16A-2"}]
[null,null,null,"Baseline","Target"]
[]
[]
[null,"Activity Description","Activity Timeframe","Output Indicator","Assigned To"]
[]
[]
[]
[]
[]
[null,"[+] Create objective"]
[null,"Applicants can submit up to three objectives for each sub-strategy; click again to hide if not needed"]
[null,{"$f":"\"Objective \" & L34","v":"Objective 16A-3"}]
[null,"Annual Objective: Describe one objective for this strategy, using the S.M.A.R.T. objectives format",null,"Description: Briefly describe the baseline and target measures of your objective",null,null,null,null,"Objective",3,null,{"$f":"K6&\"-\"&J34","v":"16A-3"}]
[null,null,null,"Baseline","Target"]
[]
[]
[null,"Activity Description","Activity Timeframe","Output Indicator","Assigned To"]
[]
[]
[]
[]
[]
[null,{"$f":"$J$3 & J44 & \": \" & INDEX(lkpSubStrategy_Text,MATCH($J$3&J44,lkpSubStrategy_ID,0))","v":"16B: Disseminate, interpret, and discuss data and findings with internal and external stakeholders"},null,null,null,null,"line\nline\nline",null,"SubStrategy letter","B",{"$f":"$J$3&J44","v":"16B"}]
[null,{"$f":"\"Objective \" & L46","v":"Objective 16B-1"}]
[null,"Annual Objective: Describe one objective for this strategy, using the S.M.A.R.T. objectives format",null,"Description: Briefly describe the baseline and target measures of your objective",null,null,null,null,"Objective",1,null,{"$f":"K44&\"-\"&J46","v":"16B-1"}]
[null,null,null,"Baseline","Target"]
[]
[]
[null,"Activity Description","Activity Timeframe","Output Indicator","Assigned To"]
[]
[]
[]
[]
[]
[null,"[+] Create objective"]
[null,"Applicants can submit up to three objectives for each sub-strategy; click again to hide if not needed"]
[null,{"$f":"\"Objective \" & L59","v":"Objective 16B-2"}]
[null,"Annual Objective: Describe one objective for this strategy, using the S.M.A.R.T. objectives format",null,"Description: Briefly describe the baseline and target measures of your objective",null,null,null,null,"Objective",2,null,{"$f":"K44&\"-\"&J59","v":"16B-2"}]
[null,null,null,"Baseline","Target"]
[]
[]
[null,"Activity Description","Activity Timeframe","Output Indicator","Assigned To"]
[]
[]
[]
[]
[]
[null,"[+] Create objective"]
[null,"Applicants can submit up to three objectives for each sub-strategy; click again to hide if not needed"]
[null,{"$f":"\"Objective \" & L72","v":"Objective 16B-3"}]
[null,"Annual Objective: Describe one objective for this strategy, using the S.M.A.R.T. objectives format",null,"Description: Briefly describe the baseline and target measures of your objective",null,null,null,null,"Objective",3,null,{"$f":"K44&\"-\"&J72","v":"16B-3"}]
[null,null,null,"Baseline","Target"]
[]
[]
[null,"Activity Description","Activity Timeframe","Output Indicator","Assigned To"]
[]
[]
[]
[]
[]
[null,{"$f":"$J$3 & J82 & \": \" & INDEX(lkpSubStrategy_Text,MATCH($J$3&J82,lkpSubStrategy_ID,0))","v":"16C: Assist local jurisdictions with analyzing their data on a regular basis, including analyses of trends, epidemiologic factors, and geographic distribution of cases, and help local areas identify outbreaks, gaps in services, or disparities in the burden of disease that should drive resource allocation"},null,null,null,null,"line\nline\nline",null,"SubStrategy letter","C",{"$f":"$J$3&J82","v":"16C"}]
[null,{"$f":"\"Objective \" & L84","v":"Objective 16C-1"}]
[null,"Annual Objective: Describe one objective for this strategy, using the S.M.A.R.T. objectives format",null,"Description: Briefly describe the baseline and target measures of your objective",null,null,null,null,"Objective",1,null,{"$f":"K82&\"-\"&J84","v":"16C-1"}]
[null,null,null,"Baseline","Target"]
[]
[]
[null,"Activity Description","Activity Timeframe","Output Indicator","Assigned To"]
[]
[]
[]
[]
[]
[null,"[+] Create objective"]
[null,"Applicants can submit up to three objectives for each sub-strategy; click again to hide if not needed"]
[null,{"$f":"\"Objective \" & L97","v":"Objective 16C-2"}]
[null,"Annual Objective: Describe one objective for this strategy, using the S.M.A.R.T. objectives format",null,"Description: Briefly describe the baseline and target measures of your objective",null,null,null,null,"Objective",2,null,{"$f":"K82&\"-\"&J97","v":"16C-2"}]
[null,null,null,"Baseline","Target"]
[]
[]
[null,"Activity Description","Activity Timeframe","Output Indicator","Assigned To"]
[]
[]
[]
[]
[]
[null,"[+] Create objective"]
[null,"Applicants can submit up to three objectives for each sub-strategy; click again to hide if not needed"]
[null,{"$f":"\"Objective \" & L110","v":"Objective 16C-3"}]
[null,"Annual Objective: Describe one objective for this strategy, using the S.M.A.R.T. objectives format",null,"Description: Briefly describe the baseline and target measures of your objective",null,null,null,null,"Objective",3,null,{"$f":"K82&\"-\"&J110","v":"16C-3"}]
[null,null,null,"Baseline","Target"]
[]
[]
[null,"Activity Description","Activity Timeframe","Output Indicator","Assigned To"]

{"sheet":"Data-Driven Planning","index":20,"n_rows":76,"n_cols":12,"rows_kept":76,"cut":false,"hidden":false,"merged":[[45,3,45,4],[58,3,58,4],[71,3,71,4],[3,1,3,4],[5,1,5,4],[7,3,7,4],[20,3,20,4],[33,3,33,4],[43,1,43,4]]}
[null,null,null,null,null,null,"Line Spacing",null,"config label","config val","Identifier(s)>>"]
[null,{"$f":"\"PCHD Year \" & PerformanceYear & \": Workplan\"","v":"PCHD Year 1: Workplan"},null,null,null,null,"20pt",null,"StrategyArea",{"$f":"INDEX(lkpStrategyAreas_ID,MATCH($J$3,lkpStrategy_ID,0))","v":5}]
[null,{"$f":"INDEX(lkpStrategyAreas_Text,MATCH($J$3,lkpStrategy_ID,0))","v":"Analyze and Use Data for Program Improvement"},null,null,null,null,null,null,"Strategy ID",17]
[null,{"$f":"\"Strategy \" & $J$3 & \": \" & INDEX(lkpStrategy_Text,MATCH($J$3,lkpStrategy_ID,0))","v":"Strategy 17: Conduct data-driven planning, analysis, monitoring and evaluation for program improvement"}]
[null,null,null,null,null,null,null,null,null,null,"SubStrategyID","ObjectiveID"]
[null,{"$f":"$J$3 & J6 & \": \" & INDEX(lkpSubStrategy_Text,MATCH($J$3&J6,lkpSubStrategy_ID,0))","v":"17A: Routinely analyze, synthesize and interpret surveillance, epidemiologic, program, and other data to strengthen the program's understanding of local STD epidemiology and program context. Evaluate progress, using scientific methods, program data, performance data, and cost data, and adjust program plans accordingly"},null,null,null,null,"line\nline\nline",null,"SubStrategy letter","A",{"$f":"$J$3&J6","v":"17A"}]
[null,{"$f":"\"Objective \" & L8","v":"Objective 17A-1"}]
[null,"Annual Objective: Describe one objective for this strategy, using the S.M.A.R.T. objectives format",null,"Description: Briefly describe the baseline and target measures of your objective",null,null,null,null,"Objective",1,null,{"$f":"K6&\"-\"&J8","v":"17A-1"}]
[null,null,null,"Baseline","Target"]
[]
[]
[null,"Activity Description","Activity Timeframe","Output Indicator","Assigned To"]
[]
[]
[]
[]
[]
[null,"[+] Create objective"]
[null,"Applicants can submit up to three objectives for each sub-strategy; click again to hide if not needed"]
[null,{"$f":"\"Objective \" & L21","v":"Objective 17A-2"}]
[null,"Annual Objective: Describe one objective for this strategy, using the S.M.A.R.T. objectives format",null,"Description: Briefly describe the baseline and target measures of your objective",null,null,null,null,"Objective",2,null,{"$f":"K6&\"-\"&J21","v":"17A-2"}]
[null,null,null,"Baseline","Target"]
[]
[]
[null,"Activity Description","Activity Timeframe","Output Indicator","Assigned To"]
[]
[]
[]
[]
[]
[null,"[+] Create objective"]
[null,"Applicants can submit up to three objectives for each sub-strategy; click again to hide if not needed"]
[null,{"$f":"\"Objective \" & L34","v":"Objective 17A-3"}]
[null,"Annual Objective: Describe one objective for this strategy, using the S.M.A.R.T. objectives format",null,"Description: Briefly describe the baseline and target measures of your objective",null,null,null,null,"Objective",3,null,{"$f":"K6&\"-\"&J34","v":"17A-3"}]
[null,null,null,"Baseline","Target"]
[]
[]
[null,"Activity Description","Activity Timeframe","Output Indicator","Assigned To"]
[]
[]
[]
[]
[]
[null,{"$f":"$J$3 & J44 & \": \" & INDEX(lkpSubStrategy_Text,MATCH($J$3&J44,lkpSubStrategy_ID,0))","v":"17B: Use findings from those analyses to identify the program's STD prevention and control priorities, populations, and geographic areas, to develop program plans, and to allocate staffing and other resources accordingly"},null,null,null,null,"line\nline\nline",null,"SubStrategy letter","B",{"$f":"$J$3&J44","v":"17B"}]
[null,{"$f":"\"Objective \" & L46","v":"Objective 17B-1"}]
[null,"Annual Objective: Describe one objective for this strategy, using the S.M.A.R.T. objectives format",null,"Description: Briefly describe the baseline and target measures of your objective",null,null,null,null,"Objective",1,null,{"$f":"K44&\"-\"&J46","v":"17B-1"}]
[null,null,null,"Baseline","Target"]
[]
[]
[null,"Activity Description","Activity Timeframe","Output Indicator","Assigned To"]
[]
[]
[]
[]
[]
[null,"[+] Create objective"]
[null,"Applicants can submit up to three objectives for each sub-strategy; click again to hide if not needed"]
[null,{"$f":"\"Objective \" & L59","v":"Objective 17B-2"}]
[null,"Annual Objective: Describe one objective for this strategy, using the S.M.A.R.T. objectives format",null,"Description: Briefly describe the baseline and target measures of your objective",null,null,null,null,"Objective",2,null,{"$f":"K44&\"-\"&J59","v":"17B-2"}]
[null,null,null,"Baseline","Target"]
[]
[]
[null,"Activity Description","Activity Timeframe","Output Indicator","Assigned To"]
[]
[]
[]
[]
[]
[null,"[+] Create objective"]
[null,"Applicants can submit up to three objectives for each sub-strategy; click again to hide if not needed"]
[null,{"$f":"\"Objective \" & L72","v":"Objective 17B-3"}]
[null,"Annual Objective: Describe one objective for this strategy, using the S.M.A.R.T. objectives format",null,"Description: Briefly describe the baseline and target measures of your objective",null,null,null,null,"Objective",3,null,{"$f":"K44&\"-\"&J72","v":"17B-3"}]
[null,null,null,"Baseline","Target"]
[]
[]
[null,"Activity Description","Activity Timeframe","Output Indicator","Assigned To"]